Workbook

Sheet Interfaz
C5: POBLACIÓN ASIGNADA SEGÚN CENSOS INEI - RENIEC - PN - CNV - 2018
C10: RED INTEGRADA DE SALUD HUAURA OYÓN
A22: Elaboración: Área de Estadística - RIS Huaura Oyón.
A23: NOTA: LA POBLACION ESTIMADA DE EDADES SIMPLES Y GRUPOS DE EDAD DE DISTRITOS, CORRESPONDEN A CIFRAS REFERENCIALES HASTA OBTENER LAS CIFRAS DE LAS PROYECCIONES DEL INEI
A26: OFICINA DE GESTION DE LA INFORMACIÓN - MINISTERIO DE SALUD
R27: Versión1.030

Sheet Poblacion
C1: 1 | D1: 2 | E1: 3 | F1: 4 | G1: 5 | H1: 6 | I1: 7 | J1: 8 | K1: 9 | L1: 10 | M1: 11 | N1: 12 | O1: 13 | P1: 14 | Q1: 15 | R1: 16 | S1: 17 | T1: 18 | U1: 19 | V1: 20 | W1: 21 | X1: 22 | Y1: 23 | Z1: 24 | AA1: 25 | AB1: 26 | AC1: 27 | AD1: 28 | AE1: 29 | AF1: 30 | AG1: 31 | AH1: 32 | AI1: 33 | AJ1: 34 | AK1: 35 | AL1: 36 | AM1: 37 | AN1: 38 | AO1: 39 | AP1: 40 | AQ1: 41 | AR1: 42 | AS1: 43 | AT1: 44 | AU1: 45 | AV1: 46 | AW1: 47 | AX1: 48 | AY1: 49 | AZ1: 50 | BA1: 51 | BB1: 54 | BC1: 55 | BD1: 56 | BE1: 57 | BI1: 77 | BJ1: 78 | BK1: 79 | BL1: 80 | BM1: 81 | BN1: 82 | BO1: 83 | BP1: 84 | BQ1: 85 | BR1: 86 | BS1: 87 | BT1: 88 | BU1: 89 | BV1: 90 | BW1: 91 | BX1: 92 | BY1: 93 | BZ1: 94 | CA1: 95 | CB1: 96 | CC1: 97 | CD1: 98 | CE1: 99 | CF1: 106 | CG1: 107 | CH1: 108 | CI1: 109 | CJ1: 110 | CK1: 111
C5: N° | E5: DIRECCION DE SALUD | F5: TOTAL GENERAL | H5: TOTAL MASCULINO | I5: TOTAL FEMENINO | K5: EDAD | M5: EDAD | O5: EDAD | Q5: EDAD | S5: EDAD | U5: EDAD | W5: EDAD | Y5: EDAD | AA5: EDAD | AC5: EDAD | AE5: EDAD | AG5: EDAD | AI5: EDAD | AK5: EDAD | AM5: EDAD | AO5: EDAD | AQ5: EDAD | AS5: EDAD | AU5: EDAD | AW5: EDAD | AY5: EDAD | BA5: NACIMIENTOS | BB5: 28 DIAS DE NACIDO | BC5: POB.FEM. TOTAL | BD5: POB.FEMENINA | BG5: GESTANTES | BH5: OTRO GRUPOS ESPECIFICOS EN POBLACION FEMENINA
A6: UBIGEO | E6: PROVINCIA | K6: 0 | M6: 1 | O6: 2 | Q6: 3 | S6: 4 | U6: 5 - 9 | W6: 10 - 14 | Y6: 15 - 19 | AA6: 20 - 24 | AC6: 25 - 29 | AE6: 30 - 34 | AG6: 35 - 39 | AI6: 40 - 44 | AK6: 45 - 49 | AM6: 50 - 54 | AO6: 55 - 59 | AQ6: 60 - 64 | AS6: 65 - 69 | AU6: 70- 74 | AW6: 75 - 79 | AY6: 80 - + | BD6: 10 - 14 Años | BE6: 15 - 19 Años | BF6: 20 - 49 Años | BH6: 12 - 17 Años | BI6: 20 - 44 Años | BJ6: 30 - 49 Años | BK6: 50 - 64 Años
B7: Microredes | D7: RENAES | E7: DISTRITO | K7: M | L7: F | M7: M | N7: F | O7: M | P7: F | Q7: M | R7: F | S7: M | T7: F | U7: M | V7: F | W7: M | X7: F | Y7: M | Z7: F | AA7: M | AB7: F | AC7: M | AD7: F | AE7: M | AF7: F | AG7: M | AH7: F | AI7: M | AJ7: F | AK7: M | AL7: F | AM7: M | AN7: F | AO7: M | AP7: F | AQ7: M | AR7: F | AS7: M | AT7: F | AU7: M | AV7: F | AW7: M | AX7: F | AY7: M | AZ7: F
A8: 150000 | C8: 1 | E8: HUAURA - OYON | F8: 253637 | H8: 125588.3605 | I8: 128048.6395 | K8: 1854.8319 | L8: 1891.1681 | M8: 2145.48495 | N8: 2187.51505 | O8: 2089.03785 | P8: 2129.96215 | Q8: 1843.9386 | R8: 1880.0614 | S8: 1980.10485 | T8: 2018.89515 | U8: 10264.95465 | V8: 10466.04535 | W8: 11560.7622 | X8: 11787.2378 | Y8: 11012.136 | Z8: 11227.864 | AA8: 10656.12315 | AB8: 10864.87685 | AC8: 9944.5926 | AD8: 10139.4074 | AE8: 8657.2026 | AF8: 8826.7974 | AG8: 8857.73835 | AH8: 9031.26165 | AI8: 8189.28585 | AJ8: 8349.71415 | AK8: 7045.48935 | AL8: 7183.51065 | AM8: 6431.0082 | AN8: 6556.9918 | AO8: 5864.06145 | AP8: 5978.93855 | AQ8: 4799.9841 | AR8: 4894.0159 | AS8: 4069.1427 | AT8: 4148.8573 | AU8: 3377.41815 | AV8: 3443.58185 | AW8: 2366.32185 | AX8: 2412.67815 | AY8: 2578.7412 | AZ8: 2629.2588 | BA8: 4408 | BB8: 342 | BC8: 130608 | BD8: 11457 | BE8: 11133 | BF8: 55574 | BG8: 6005 | BH8: 13566 | BI8: 46698 | BJ8: 33032 | BK8: 17289
A9: 150800 | C9: 2 | D9: 150800 | E9: PROVINCIA HUAURA | F9: 230083 | H9: 113925.5974 | I9: 116157.4026 | K9: 1757.28735 | L9: 1791.71265 | M9: 2021.69745 | N9: 2061.30255 | O9: 1962.7746 | P9: 2001.2254 | Q9: 1738.9668 | R9: 1773.0332 | S9: 1848.39495 | T9: 1884.60505 | U9: 9121.15815 | V9: 9299.84185 | W9: 10306.0521 | X9: 10507.9479 | Y9: 10050.5547 | Z9: 10247.4453 | AA9: 9739.6005 | AB9: 9930.3995 | AC9: 8956.2732 | AD9: 9131.7268 | AE9: 7788.21435 | AF9: 7940.78565 | AG9: 7911.5067 | AH9: 8066.4933 | AI9: 7441.1142 | AJ9: 7586.8858 | AK9: 6380.5029 | AL9: 6505.4971 | AM9: 5883.86745 | AN9: 5999.13255 | AO9: 5376.83385 | AP9: 5482.16615 | AQ9: 4418.22345 | AR9: 4504.77655 | AS9: 3675.49845 | AT9: 3747.50155 | AU9: 3061.51245 | AV9: 3121.48755 | AW9: 2118.74685 | AX9: 2160.25315 | AY9: 2366.817 | AZ9: 2413.183 | BA9: 3864 | BB9: 303 | BC9: 117765 | BD9: 10207 | BE9: 10157 | BF9: 50206 | BG9: 5261 | BH9: 12261 | BI9: 42202 | BJ9: 29815 | BK9: 15884
A10: 150801 | C10: 3 | D10: 150802 | E10: DISTRITO HUACHO | F10: 63662 | H10: 31522.2393 | I10: 32139.7607 | K10: 682.81185 | L10: 696.18815 | M10: 743.7153 | N10: 758.2847 | O10: 830.36655 | P10: 846.63345 | Q10: 424.8387 | R10: 433.1613 | S10: 541.19895 | T10: 551.80105 | U10: 2220.2526 | V10: 2263.7474 | W10: 2488.12875 | X10: 2536.87125 | Y10: 2473.7694 | Z10: 2522.2306 | AA10: 2503.4784 | AB10: 2552.5216 | AC10: 2310.3699 | AD10: 2355.6301 | AE10: 2021.2023 | AF10: 2060.7977 | AG10: 2130.63045 | AH10: 2172.36955 | AI10: 2083.09605 | AJ10: 2123.90395 | AK10: 1838.9871 | AL10: 1875.0129 | AM10: 1819.1811 | AN10: 1854.8189 | AO10: 1633.49985 | AP10: 1665.50015 | AQ10: 1313.63295 | AR10: 1339.36705 | AS10: 1111.61175 | AT10: 1133.38825 | AU10: 928.9014 | AV10: 947.0986 | AW10: 669.4428 | AX10: 682.5572 | AY10: 753.12315 | AZ10: 767.87685 | BA10: 928 | BB10: 73 | BC10: 31468 | BD10: 2454 | BE10: 2489 | BF10: 13372 | BG10: 1263 | BH10: 2981 | BI10: 11375 | BJ10: 8278 | BK10: 4974
B11: 00 | C11: 4 | D11: 7639 | E11: HOSPITAL HUACHO | F11: 47747 | H11: 23641.92705 | I11: 24105.07295 | K11: 511.9851 | L11: 522.0149 | M11: 557.5389 | N11: 568.4611 | O11: 622.8987 | P11: 635.1013 | Q11: 318.8766 | R11: 325.1234 | S11: 406.023 | T11: 413.977 | U11: 1665.18945 | V11: 1697.81055 | W11: 1866.22035 | X11: 1902.77965 | Y11: 1855.32705 | Z11: 1891.67295 | AA11: 1877.6088 | AB11: 1914.3912 | AC11: 1733.025 | AD11: 1766.975 | AE11: 1515.65415 | AF11: 1545.34585 | AG11: 1597.84905 | AH11: 1629.15095 | AI11: 1562.19825 | AJ11: 1592.80175 | AK11: 1378.99275 | AL11: 1406.00725 | AM11: 1364.6334 | AN11: 1391.3666 | AO11: 1225.0011 | AP11: 1248.9989 | AQ11: 985.3485 | AR11: 1004.6515 | AS11: 833.8326 | AT11: 850.1674 | AU11: 696.67605 | AV11: 710.32395 | AW11: 502.0821 | AX11: 511.9179 | AY11: 564.96615 | AZ11: 576.03385 | BA11: 696 | BB11: 55 | BC11: 23601 | BD11: 1840 | BE11: 1867 | BF11: 10029 | BG11: 947 | BH11: 2237 | BI11: 8532 | BJ11: 6208 | BK11: 3729
B12: 02 | C12: 5 | D12: 5679 | E12: C.S. MANZANARES | F12: 15915 | H12: 7880.31225 | I12: 8034.68775 | K12: 170.82675 | L12: 174.17325 | M12: 186.1764 | N12: 189.8236 | O12: 207.46785 | P12: 211.53215 | Q12: 105.9621 | R12: 108.0379 | S12: 135.17595 | T12: 137.82405 | U12: 555.06315 | V12: 565.93685 | W12: 621.9084 | X12: 634.0916 | Y12: 618.44235 | Z12: 630.55765 | AA12: 625.8696 | AB12: 638.1304 | AC12: 577.3449 | AD12: 588.6551 | AE12: 505.54815 | AF12: 515.45185 | AG12: 532.7814 | AH12: 543.2186 | AI12: 520.8978 | AJ12: 531.1022 | AK12: 459.99435 | AL12: 469.00565 | AM12: 454.5477 | AN12: 463.4523 | AO12: 408.49875 | AP12: 416.50125 | AQ12: 328.28445 | AR12: 334.71555 | AS12: 277.77915 | AT12: 283.22085 | AU12: 232.22535 | AV12: 236.77465 | AW12: 167.3607 | AX12: 170.6393 | AY12: 188.157 | AZ12: 191.843 | BA12: 232 | BB12: 18 | BC12: 7867 | BD12: 614 | BE12: 622 | BF12: 3343 | BG12: 316 | BH12: 744 | BI12: 2843 | BJ12: 2070 | BK12: 1245
A13: 150802 | C13: 6 | D13: 150802 | E13: DISTRITO AMBAR | F13: 2751 | H13: 1362.15765 | I13: 1388.84235 | K13: 18.8157 | L13: 19.1843 | M13: 20.7963 | N13: 21.2037 | O13: 21.29145 | P13: 21.70855 | Q13: 11.38845 | R13: 11.61155 | S13: 20.30115 | T13: 20.69885 | U13: 153.00135 | V13: 155.99865 | W13: 150.5256 | X13: 153.4744 | Y13: 103.9815 | Z13: 106.0185 | AA13: 108.933 | AB13: 111.067 | AC13: 90.61245 | AD13: 92.38755 | AE13: 83.1852 | AF13: 84.8148 | AG13: 83.1852 | AH13: 84.8148 | AI13: 74.2725 | AJ13: 75.7275 | AK13: 79.224 | AL13: 80.776 | AM13: 72.2919 | AN13: 73.7081 | AO13: 63.3792 | AP13: 64.6208 | AQ13: 57.93255 | AR13: 59.06745 | AS13: 53.4762 | AT13: 54.5238 | AU13: 38.6217 | AV13: 39.3783 | AW13: 25.7478 | AX13: 26.2522 | AY13: 31.19445 | AZ13: 31.80555 | BA13: 44 | BB13: 3 | BC13: 1472 | BD13: 149 | BE13: 105 | BF13: 544 | BG13: 60 | BH13: 151 | BI13: 421 | BJ13: 295 | BK13: 174
B14: 01 | C14: 7 | D14: 5680 | E14: C.S. AMBAR | F14: 1652 | H14: 817.9878 | I14: 834.0122 | K14: 11.38845 | L14: 11.61155 | M14: 12.37875 | N14: 12.62125 | O14: 12.8739 | P14: 13.1261 | Q14: 6.9321 | R14: 7.0679 | S14: 12.37875 | T14: 12.62125 | U14: 91.60275 | V14: 93.39725 | W14: 90.1173 | X14: 91.8827 | Y14: 62.3889 | Z14: 63.6111 | AA14: 65.3598 | AB14: 66.6402 | AC14: 54.4665 | AD14: 55.5335 | AE14: 50.01015 | AF14: 50.98985 | AG14: 50.01015 | AH14: 50.98985 | AI14: 44.5635 | AJ14: 45.4365 | AK14: 47.5344 | AL14: 48.4656 | AM14: 43.5732 | AN14: 44.4268 | AO14: 38.12655 | AP14: 38.87345 | AQ14: 34.6605 | AR14: 35.3395 | AS14: 32.18475 | AT14: 32.81525 | AU14: 23.27205 | AV14: 23.72795 | AW14: 15.34965 | AX14: 15.65035 | AY14: 18.8157 | AZ14: 19.1843 | BA14: 26 | BB14: 2 | BC14: 883 | BD14: 89 | BE14: 63 | BF14: 326 | BG14: 36 | BH14: 91 | BI14: 252 | BJ14: 176 | BK14: 105
B15: 01 | C15: 8 | D15: 5681 | E15: P.S. AYNACA | F15: 1099 | H15: 544.16985 | I15: 554.83015 | K15: 7.42725 | L15: 7.57275 | M15: 8.41755 | N15: 8.58245 | O15: 8.41755 | P15: 8.58245 | Q15: 4.45635 | R15: 4.54365 | S15: 7.9224 | T15: 8.0776 | U15: 61.3986 | V15: 62.6014 | W15: 60.4083 | X15: 61.5917 | Y15: 41.5926 | Z15: 42.4074 | AA15: 43.5732 | AB15: 44.4268 | AC15: 36.14595 | AD15: 36.85405 | AE15: 33.17505 | AF15: 33.82495 | AG15: 33.17505 | AH15: 33.82495 | AI15: 29.709 | AJ15: 30.291 | AK15: 31.6896 | AL15: 32.3104 | AM15: 28.7187 | AN15: 29.2813 | AO15: 25.25265 | AP15: 25.74735 | AQ15: 23.27205 | AR15: 23.72795 | AS15: 21.29145 | AT15: 21.70855 | AU15: 15.34965 | AV15: 15.65035 | AW15: 10.39815 | AX15: 10.60185 | AY15: 12.37875 | AZ15: 12.62125 | BA15: 18 | BB15: 1 | BC15: 589 | BD15: 60 | BE15: 42 | BF15: 218 | BG15: 24 | BH15: 60 | BI15: 169 | BJ15: 119 | BK15: 69
A16: 150803 | C16: 9 | D16: 150803 | E16: DISTRITO CARQUIN | F16: 7011 | H16: 3471.49665 | I16: 3539.50335 | K16: 41.5926 | L16: 42.4074 | M16: 53.4762 | N16: 54.5238 | O16: 41.5926 | P16: 42.4074 | Q16: 54.96165 | R16: 56.03835 | S16: 45.5538 | T16: 46.4462 | U16: 273.81795 | V16: 279.18205 | W16: 277.284 | X16: 282.716 | Y16: 283.2258 | Z16: 288.7742 | AA16: 327.7893 | AB16: 334.2107 | AC16: 326.30385 | AD16: 332.69615 | AE16: 291.1482 | AF16: 296.8518 | AG16: 254.01195 | AH16: 258.98805 | AI16: 260.94405 | AJ16: 266.05595 | AK16: 187.1667 | AL16: 190.8333 | AM16: 183.70065 | AN16: 187.29935 | AO16: 157.4577 | AP16: 160.5423 | AQ16: 121.31175 | AR16: 123.68825 | AS16: 113.8845 | AT16: 116.1155 | AU16: 77.2434 | AV16: 78.7566 | AW16: 45.5538 | AX16: 46.4462 | AY16: 53.4762 | AZ16: 54.5238 | BA16: 129 | BB16: 10 | BC16: 3655 | BD16: 275 | BE16: 287 | BF16: 1715 | BG16: 176 | BH16: 337 | BI16: 1438 | BJ16: 971 | BK16: 452
B17: 02 | C17: 10 | D17: 5664 | E17: P.S. CARQUIN | F17: 7011 | H17: 3471.49665 | I17: 3539.50335 | K17: 41.5926 | L17: 42.4074 | M17: 53.4762 | N17: 54.5238 | O17: 41.5926 | P17: 42.4074 | Q17: 54.96165 | R17: 56.03835 | S17: 45.5538 | T17: 46.4462 | U17: 273.81795 | V17: 279.18205 | W17: 277.284 | X17: 282.716 | Y17: 283.2258 | Z17: 288.7742 | AA17: 327.7893 | AB17: 334.2107 | AC17: 326.30385 | AD17: 332.69615 | AE17: 291.1482 | AF17: 296.8518 | AG17: 254.01195 | AH17: 258.98805 | AI17: 260.94405 | AJ17: 266.05595 | AK17: 187.1667 | AL17: 190.8333 | AM17: 183.70065 | AN17: 187.29935 | AO17: 157.4577 | AP17: 160.5423 | AQ17: 121.31175 | AR17: 123.68825 | AS17: 113.8845 | AT17: 116.1155 | AU17: 77.2434 | AV17: 78.7566 | AW17: 45.5538 | AX17: 46.4462 | AY17: 53.4762 | AZ17: 54.5238 | BA17: 129 | BB17: 10 | BC17: 3655 | BD17: 275 | BE17: 287 | BF17: 1715 | BG17: 176 | BH17: 337 | BI17: 1438 | BJ17: 971 | BK17: 452
A18: 150804 | C18: 11 | D18: 150804 | E18: DISTRITO CHECRAS | F18: 1751 | H18: 867.00765 | I18: 883.99235 | K18: 1.9806 | L18: 2.0194 | M18: 3.9612 | N18: 4.0388 | O18: 1.9806 | P18: 2.0194 | Q18: 4.9515 | R18: 5.0485 | S18: 1.9806 | T18: 2.0194 | U18: 58.4277 | V18: 59.5723 | W18: 80.70945 | X18: 82.29055 | Y18: 52.4859 | Z18: 53.5141 | AA18: 34.6605 | AB18: 35.3395 | AC18: 47.03925 | AD18: 47.96075 | AE18: 39.612 | AF18: 40.388 | AG18: 60.90345 | AH18: 62.09655 | AI18: 59.91315 | AJ18: 61.08685 | AK18: 53.4762 | AL18: 54.5238 | AM18: 71.79675 | AN18: 73.20325 | AO18: 56.94225 | AP18: 58.05775 | AQ18: 57.4374 | AR18: 58.5626 | AS18: 48.02955 | AT18: 48.97045 | AU18: 63.87435 | AV18: 65.12565 | AW18: 34.6605 | AX18: 35.3395 | AY18: 32.18475 | AZ18: 32.81525 | BA18: 34 | BB18: 2 | BC18: 958 | BD18: 79 | BE18: 52 | BF18: 304 | BG18: 47 | BH18: 91 | BI18: 227 | BJ18: 213 | BK18: 170
B19: 05 | C19: 12 | D19: 5663 | E19: P.S. PUÑUN | F19: 1751 | H19: 867.00765 | I19: 883.99235 | K19: 1.9806 | L19: 2.0194 | M19: 3.9612 | N19: 4.0388 | O19: 1.9806 | P19: 2.0194 | Q19: 4.9515 | R19: 5.0485 | S19: 1.9806 | T19: 2.0194 | U19: 58.4277 | V19: 59.5723 | W19: 80.70945 | X19: 82.29055 | Y19: 52.4859 | Z19: 53.5141 | AA19: 34.6605 | AB19: 35.3395 | AC19: 47.03925 | AD19: 47.96075 | AE19: 39.612 | AF19: 40.388 | AG19: 60.90345 | AH19: 62.09655 | AI19: 59.91315 | AJ19: 61.08685 | AK19: 53.4762 | AL19: 54.5238 | AM19: 71.79675 | AN19: 73.20325 | AO19: 56.94225 | AP19: 58.05775 | AQ19: 57.4374 | AR19: 58.5626 | AS19: 48.02955 | AT19: 48.97045 | AU19: 63.87435 | AV19: 65.12565 | AW19: 34.6605 | AX19: 35.3395 | AY19: 32.18475 | AZ19: 32.81525 | BA19: 34 | BB19: 2 | BC19: 958 | BD19: 79 | BE19: 52 | BF19: 304 | BG19: 47 | BH19: 91 | BI19: 227 | BJ19: 213 | BK19: 170
A20: 150805 | C20: 13 | D20: 150805 | E20: DISTRITO HUALMAY | F20: 29796 | H20: 14753.4894 | I20: 15042.5106 | K20: 175.77825 | L20: 179.22175 | M20: 195.58425 | N20: 199.41575 | O20: 177.2637 | P20: 180.7363 | Q20: 249.06045 | R20: 253.93955 | S20: 264.4101 | T20: 269.5899 | U20: 1187.3697 | V20: 1210.6303 | W20: 1352.7498 | X20: 1379.2502 | Y20: 1281.94335 | Z20: 1307.05665 | AA20: 1267.584 | AB20: 1292.416 | AC20: 1168.05885 | AD20: 1190.94115 | AE20: 1021.9896 | AF20: 1042.0104 | AG20: 1060.11615 | AH20: 1080.88385 | AI20: 1020.009 | AJ20: 1039.991 | AK20: 799.66725 | AL20: 815.33275 | AM20: 764.01645 | AN20: 778.98355 | AO20: 730.8414 | AP20: 745.1586 | AQ20: 576.84975 | AR20: 588.15025 | AS20: 500.1015 | AT20: 509.8985 | AU20: 364.92555 | AV20: 372.07445 | AW20: 276.78885 | AX20: 282.21115 | AY20: 318.38145 | AZ20: 324.61855 | BA20: 501 | BB20: 40 | BC20: 15369 | BD20: 1339 | BE20: 1295 | BF20: 6596 | BG20: 682 | BH20: 1581 | BI20: 5634 | BJ20: 3962 | BK20: 2141
B21: 02 | C21: 14 | D21: 5665 | E21: C.S. HUALMAY | F21: 14898 | H21: 7376.7447 | I21: 7521.2553 | K21: 88.1367 | L21: 89.8633 | M21: 98.0397 | N21: 99.9603 | O21: 88.63185 | P21: 90.36815 | Q21: 124.7778 | R21: 127.2222 | S21: 132.20505 | T21: 134.79495 | U21: 594.18 | V21: 605.82 | W21: 676.3749 | X21: 689.6251 | Y21: 640.22895 | Z21: 652.77105 | AA21: 633.792 | AB21: 646.208 | AC21: 583.78185 | AD21: 595.21815 | AE21: 510.9948 | AF21: 521.0052 | AG21: 530.30565 | AH21: 540.69435 | AI21: 510.0045 | AJ21: 519.9955 | AK21: 400.0812 | AL21: 407.9188 | AM21: 382.2558 | AN21: 389.7442 | AO21: 365.4207 | AP21: 372.5793 | AQ21: 288.1773 | AR21: 293.8227 | AS21: 249.5556 | AT21: 254.4444 | AU21: 182.2152 | AV21: 185.7848 | AW21: 138.14685 | AX21: 140.85315 | AY21: 159.4383 | AZ21: 162.5617 | BA21: 251 | BB21: 20 | BC21: 7685 | BD21: 669 | BE21: 648 | BF21: 3298 | BG21: 341 | BH21: 787 | BI21: 2820 | BJ21: 1986 | BK21: 1070
B22: 02 | C22: 15 | D22: 5666 | E22: P.S. DGO. MANDAMIENTO | F22: 10429 | H22: 5163.91935 | I22: 5265.08065 | K22: 61.3986 | L22: 62.6014 | M22: 68.3307 | N22: 69.6693 | O22: 61.89375 | P22: 63.10625 | Q22: 87.1464 | R22: 88.8536 | S22: 92.59305 | T22: 94.40695 | U22: 415.43085 | V22: 423.56915 | W22: 473.3634 | X22: 482.6366 | Y22: 449.10105 | Z22: 457.89895 | AA22: 443.6544 | AB22: 452.3456 | AC22: 408.9939 | AD22: 417.0061 | AE22: 357.4983 | AF22: 364.5017 | AG22: 370.86735 | AH22: 378.13265 | AI22: 357.00315 | AJ22: 363.99685 | AK22: 279.75975 | AL22: 285.24025 | AM22: 267.381 | AN22: 272.619 | AO22: 255.99255 | AP22: 261.00745 | AQ22: 202.0212 | AR22: 205.9788 | AS22: 175.2831 | AT22: 178.7169 | AU22: 127.7487 | AV22: 130.2513 | AW22: 97.0494 | AX22: 98.9506 | AY22: 111.40875 | AZ22: 113.59125 | BA22: 175 | BB22: 14 | BC22: 5379 | BD22: 469 | BE22: 453 | BF22: 2309 | BG22: 239 | BH22: 555 | BI22: 1971 | BJ22: 1385 | BK22: 750
B23: 02 | C23: 16 | D23: 5667 | E23: P.S. CAMPO ALEGRE | F23: 4469 | H23: 2212.82535 | I23: 2256.17465 | K23: 26.24295 | L23: 26.75705 | M23: 29.21385 | N23: 29.78615 | O23: 26.7381 | P23: 27.2619 | Q23: 37.13625 | R23: 37.86375 | S23: 39.612 | T23: 40.388 | U23: 177.75885 | V23: 181.24115 | W23: 203.0115 | X23: 206.9885 | Y23: 192.61335 | Z23: 196.38665 | AA23: 190.1376 | AB23: 193.8624 | AC23: 175.2831 | AD23: 178.7169 | AE23: 153.4965 | AF23: 156.5035 | AG23: 158.94315 | AH23: 162.05685 | AI23: 153.00135 | AJ23: 155.99865 | AK23: 119.8263 | AL23: 122.1737 | AM23: 114.37965 | AN23: 116.62035 | AO23: 109.42815 | AP23: 111.57185 | AQ23: 86.65125 | AR23: 88.34875 | AS23: 75.2628 | AT23: 76.7372 | AU23: 54.96165 | AV23: 56.03835 | AW23: 41.5926 | AX23: 42.4074 | AY23: 47.5344 | AZ23: 48.4656 | BA23: 75 | BB23: 6 | BC23: 2305 | BD23: 201 | BE23: 194 | BF23: 989 | BG23: 102 | BH23: 239 | BI23: 843 | BJ23: 591 | BK23: 321
A24: 150806 | C24: 17 | D24: 150806 | E24: DISTRITO HUAURA | F24: 36623 | H24: 18133.87845 | I24: 18489.12155 | K24: 221.8272 | L24: 226.1728 | M24: 278.2743 | N24: 283.7257 | O24: 303.52695 | P24: 309.47305 | Q24: 275.79855 | R24: 281.20145 | S24: 260.94405 | T24: 266.05595 | U24: 1485.94515 | V24: 1515.05485 | W24: 1826.60835 | X24: 1862.39165 | Y24: 1893.94875 | Z24: 1931.05125 | AA24: 1670.6361 | AB24: 1703.3639 | AC24: 1504.76085 | AD24: 1534.23915 | AE24: 1290.3609 | AF24: 1315.6391 | AG24: 1258.6713 | AH24: 1283.3287 | AI24: 1183.90365 | AJ24: 1207.09635 | AK24: 1003.66905 | AL24: 1023.33095 | AM24: 868.98825 | AN24: 886.01175 | AO24: 743.7153 | AP24: 758.2847 | AQ24: 589.2285 | AR24: 600.7715 | AS24: 497.62575 | AT24: 507.37425 | AU24: 436.7223 | AV24: 445.2777 | AW24: 265.4004 | AX24: 270.5996 | AY24: 273.3228 | AZ24: 278.6772 | BA24: 637 | BB24: 51 | BC24: 19016 | BD24: 1816 | BE24: 1921 | BF24: 8266 | BG24: 867 | BH24: 2250 | BI24: 6866 | BJ24: 4823 | BK24: 2208
B25: 01 | C25: 18 | D25: 5682 | E25: C.S. HUAURA | F25: 18311 | H25: 9066.69165 | I25: 9244.30835 | K25: 110.9136 | L25: 113.0864 | M25: 139.13715 | N25: 141.86285 | O25: 152.01105 | P25: 154.98895 | Q25: 137.6517 | R25: 140.3483 | S25: 130.7196 | T25: 133.2804 | U25: 742.22985 | V25: 756.77015 | W25: 913.0566 | X25: 930.9434 | Y25: 947.22195 | Z25: 965.77805 | AA25: 835.31805 | AB25: 851.68195 | AC25: 752.13285 | AD25: 766.86715 | AE25: 645.18045 | AF25: 657.81955 | AG25: 629.33565 | AH25: 641.66435 | AI25: 592.1994 | AJ25: 603.8006 | AK25: 502.0821 | AL25: 511.9179 | AM25: 434.7417 | AN25: 443.2583 | AO25: 371.85765 | AP25: 379.14235 | AQ25: 294.61425 | AR25: 300.38575 | AS25: 249.06045 | AT25: 253.93955 | AU25: 218.36115 | AV25: 222.63885 | AW25: 132.7002 | AX25: 135.2998 | AY25: 136.16625 | AZ25: 138.83375 | BA25: 319 | BB25: 24 | BC25: 9508 | BD25: 908 | BE25: 961 | BF25: 4132 | BG25: 433 | BH25: 1123 | BI25: 3436 | BJ25: 2412 | BK25: 1107
B26: 01 | C26: 19 | D26: 5686 | E26: P.S. HUMAYA | F26: 12086 | H26: 5984.3829 | I26: 6101.6171 | K26: 73.2822 | L26: 74.7178 | M26: 91.60275 | N26: 93.39725 | O26: 100.0203 | P26: 101.9797 | Q26: 91.1076 | R26: 92.8924 | S26: 86.1561 | T26: 87.8439 | U26: 490.1985 | V26: 499.8015 | W26: 603.0927 | X26: 614.9073 | Y26: 624.8793 | Z26: 637.1207 | AA26: 551.10195 | AB26: 561.89805 | AC26: 496.63545 | AD26: 506.36455 | AE26: 425.829 | AF26: 434.171 | AG26: 415.43085 | AH26: 423.56915 | AI26: 390.67335 | AJ26: 398.32665 | AK26: 331.25535 | AL26: 337.74465 | AM26: 286.69185 | AN26: 292.30815 | AO26: 245.5944 | AP26: 250.4056 | AQ26: 194.59395 | AR26: 198.40605 | AS26: 164.3898 | AT26: 167.6102 | AU26: 144.08865 | AV26: 146.91135 | AW26: 87.64155 | AX26: 89.35845 | AY26: 90.1173 | AZ26: 91.8827 | BA26: 210 | BB26: 17 | BC26: 6275 | BD26: 599 | BE26: 634 | BF26: 2728 | BG26: 286 | BH26: 743 | BI26: 2267 | BJ26: 1592 | BK26: 727
B27: 01 | C27: 20 | D27: 5683 | E27: P.S. VILCAHUAURA | F27: 3296 | H27: 1632.0144 | I27: 1663.9856 | K27: 20.30115 | L27: 20.69885 | M27: 25.25265 | N27: 25.74735 | O27: 27.23325 | P27: 27.76675 | Q27: 24.7575 | R27: 25.2425 | S27: 23.27205 | T27: 23.72795 | U27: 134.18565 | V27: 136.81435 | W27: 163.89465 | X27: 167.10535 | Y27: 170.3316 | Z27: 173.6684 | AA27: 150.5256 | AB27: 153.4744 | AC27: 135.6711 | AD27: 138.3289 | AE27: 116.36025 | AF27: 118.63975 | AG27: 113.38935 | AH27: 115.61065 | AI27: 106.45725 | AJ27: 108.54275 | AK27: 90.1173 | AL27: 91.8827 | AM27: 78.2337 | AN27: 79.7663 | AO27: 66.84525 | AP27: 68.15475 | AQ27: 52.98105 | AR27: 54.01895 | AS27: 44.5635 | AT27: 45.4365 | AU27: 39.11685 | AV27: 39.88315 | AW27: 23.7672 | AX27: 24.2328 | AY27: 24.7575 | AZ27: 25.2425 | BA27: 57 | BB27: 5 | BC27: 1711 | BD27: 163 | BE27: 173 | BF27: 744 | BG27: 78 | BH27: 202 | BI27: 618 | BJ27: 435 | BK27: 196
B28: 01 | C28: 21 | D28: 5684 | E28: P.S. PEÑICO | F28: 2564 | H28: 1269.5646 | I28: 1294.4354 | K28: 15.34965 | L28: 15.65035 | M28: 19.31085 | N28: 19.68915 | O28: 21.29145 | P28: 21.70855 | Q28: 19.31085 | R28: 19.68915 | S28: 18.32055 | T28: 18.67945 | U28: 104.47665 | V28: 106.52335 | W28: 128.24385 | X28: 130.75615 | Y28: 132.20505 | Z28: 134.79495 | AA28: 116.8554 | AB28: 119.1446 | AC28: 105.46695 | AD28: 107.53305 | AE28: 90.1173 | AF28: 91.8827 | AG28: 88.1367 | AH28: 89.8633 | AI28: 82.69005 | AJ28: 84.30995 | AK28: 70.3113 | AL28: 71.6887 | AM28: 60.90345 | AN28: 62.09655 | AO28: 51.99075 | AP28: 53.00925 | AQ28: 41.09745 | AR28: 41.90255 | AS28: 34.6605 | AT28: 35.3395 | AU28: 30.6993 | AV28: 31.3007 | AW28: 18.8157 | AX28: 19.1843 | AY28: 19.31085 | AZ28: 19.68915 | BA28: 45 | BB28: 4 | BC28: 1331 | BD28: 127 | BE28: 134 | BF28: 579 | BG28: 61 | BH28: 160 | BI28: 478 | BJ28: 336 | BK28: 156
B29: 01 | C29: 22 | D29: 5685 | E29: P.S. EL SOCORRO | F29: 366 | H29: 181.2249 | I29: 184.7751 | K29: 1.9806 | L29: 2.0194 | M29: 2.9709 | N29: 3.0291 | O29: 2.9709 | P29: 3.0291 | Q29: 2.9709 | R29: 3.0291 | S29: 2.47575 | T29: 2.52425 | U29: 14.8545 | V29: 15.1455 | W29: 18.32055 | X29: 18.67945 | Y29: 19.31085 | Z29: 19.68915 | AA29: 16.8351 | AB29: 17.1649 | AC29: 14.8545 | AD29: 15.1455 | AE29: 12.8739 | AF29: 13.1261 | AG29: 12.37875 | AH29: 12.62125 | AI29: 11.8836 | AJ29: 12.1164 | AK29: 9.903 | AL29: 10.097 | AM29: 8.41755 | AN29: 8.58245 | AO29: 7.42725 | AP29: 7.57275 | AQ29: 5.9418 | AR29: 6.0582 | AS29: 4.9515 | AT29: 5.0485 | AU29: 4.45635 | AV29: 4.54365 | AW29: 2.47575 | AX29: 2.52425 | AY29: 2.9709 | AZ29: 3.0291 | BA29: 6 | BB29: 1 | BC29: 191 | BD29: 19 | BE29: 19 | BF29: 83 | BG29: 9 | BH29: 22 | BI29: 67 | BJ29: 48 | BK29: 22
A30: 150807 | C30: 23 | D30: 150807 | E30: DISTRITO LEONCIO PRADO | F30: 1990 | H30: 985.3485 | I30: 1004.6515 | K30: 10.8933 | L30: 11.1067 | M30: 11.38845 | N30: 11.61155 | O30: 13.8642 | P30: 14.1358 | Q30: 12.8739 | R30: 13.1261 | S30: 16.33995 | T30: 16.66005 | U30: 103.9815 | V30: 106.0185 | W30: 78.72885 | X30: 80.27115 | Y30: 74.76765 | Z30: 76.23235 | AA30: 83.68035 | AB30: 85.31965 | AC30: 80.2143 | AD30: 81.7857 | AE30: 60.90345 | AF30: 62.09655 | AG30: 62.88405 | AH30: 64.11595 | AI30: 57.4374 | AJ30: 58.5626 | AK30: 59.91315 | AL30: 61.08685 | AM30: 59.91315 | AN30: 61.08685 | AO30: 41.09745 | AP30: 41.90255 | AQ30: 40.6023 | AR30: 41.3977 | AS30: 34.6605 | AT30: 35.3395 | AU30: 31.6896 | AV30: 32.3104 | AW30: 22.28175 | AX30: 22.71825 | AY30: 27.23325 | AZ30: 27.76675 | BA30: 34 | BB30: 2 | BC30: 1063 | BD30: 78 | BE30: 75 | BF30: 422 | BG30: 47 | BH30: 81 | BI30: 305 | BJ30: 211 | BK30: 119
B31: 03 | C31: 24 | D31: 5778 | E31: P.S. AUQUIMARCA | F31: 100 | H31: 49.515 | I31: 50.485 | K31: 0.49515 | L31: 0.50485 | M31: 0.49515 | N31: 0.50485 | O31: 0.49515 | P31: 0.50485 | Q31: 0.49515 | R31: 0.50485 | S31: 0.9903 | T31: 1.0097 | U31: 4.9515 | V31: 5.0485 | W31: 4.45635 | X31: 4.54365 | Y31: 4.9515 | Z31: 5.0485 | AA31: 3.9612 | AB31: 4.0388 | AC31: 3.9612 | AD31: 4.0388 | AE31: 2.9709 | AF31: 3.0291 | AG31: 2.9709 | AH31: 3.0291 | AI31: 2.9709 | AJ31: 3.0291 | AK31: 2.9709 | AL31: 3.0291 | AM31: 2.9709 | AN31: 3.0291 | AO31: 1.9806 | AP31: 2.0194 | AQ31: 1.9806 | AR31: 2.0194 | AS31: 1.9806 | AT31: 2.0194 | AU31: 1.48545 | AV31: 1.51455 | AW31: 0.9903 | AX31: 1.0097 | AY31: 0.9903 | AZ31: 1.0097 | BA31: 2 | BB31: 0 | BC31: 53 | BD31: 4 | BE31: 4 | BF31: 21 | BG31: 2 | BH31: 6 | BI31: 16 | BJ31: 10 | BK31: 3
B32: 03 | C32: 25 | D32: 5779 | E32: P.S. PARAN | F32: 994 | H32: 492.1791 | I32: 501.8209 | K32: 5.44665 | L32: 5.55335 | M32: 5.44665 | N32: 5.55335 | O32: 6.9321 | P32: 7.0679 | Q32: 6.43695 | R32: 6.56305 | S32: 7.9224 | T32: 8.0776 | U32: 51.99075 | V32: 53.00925 | W32: 38.6217 | X32: 39.3783 | Y32: 36.14595 | Z32: 36.85405 | AA32: 42.08775 | AB32: 42.91225 | AC32: 40.10715 | AD32: 40.89285 | AE32: 30.6993 | AF32: 31.3007 | AG32: 31.6896 | AH32: 32.3104 | AI32: 28.7187 | AJ32: 29.2813 | AK32: 30.20415 | AL32: 30.79585 | AM32: 30.20415 | AN32: 30.79585 | AO32: 20.7963 | AP32: 21.2037 | AQ32: 20.30115 | AR32: 20.69885 | AS32: 17.33025 | AT32: 17.66975 | AU32: 15.8448 | AV32: 16.1552 | AW32: 11.38845 | AX32: 11.61155 | AY32: 13.8642 | AZ32: 14.1358 | BA32: 16 | BB32: 1 | BC32: 531 | BD32: 38 | BE32: 37 | BF32: 211 | BG32: 24 | BH32: 40 | BI32: 143 | BJ32: 100 | BK32: 63
B33: 03 | C33: 26 | D33: 6725 | E33: P.S. SANTA CRUZ | F33: 398 | H33: 197.0697 | I33: 200.9303 | K33: 1.9806 | L33: 2.0194 | M33: 2.47575 | N33: 2.52425 | O33: 2.9709 | P33: 3.0291 | Q33: 2.47575 | R33: 2.52425 | S33: 3.46605 | T33: 3.53395 | U33: 20.7963 | V33: 21.2037 | W33: 15.8448 | X33: 16.1552 | Y33: 14.8545 | Z33: 15.1455 | AA33: 16.8351 | AB33: 17.1649 | AC33: 15.8448 | AD33: 16.1552 | AE33: 12.37875 | AF33: 12.62125 | AG33: 12.37875 | AH33: 12.62125 | AI33: 11.38845 | AJ33: 11.61155 | AK33: 11.8836 | AL33: 12.1164 | AM33: 11.8836 | AN33: 12.1164 | AO33: 8.41755 | AP33: 8.58245 | AQ33: 7.9224 | AR33: 8.0776 | AS33: 6.9321 | AT33: 7.0679 | AU33: 6.43695 | AV33: 6.56305 | AW33: 4.45635 | AX33: 4.54365 | AY33: 5.44665 | AZ33: 5.55335 | BA33: 7 | BB33: 0 | BC33: 213 | BD33: 16 | BE33: 15 | BF33: 84 | BG33: 9 | BH33: 14 | BI33: 62 | BJ33: 43 | BK33: 24
B34: 03 | C34: 27 | D34: 7757 | E34: P.S. HUANANGUI | F34: 498 | H34: 246.5847 | I34: 251.4153 | K34: 2.9709 | L34: 3.0291 | M34: 2.9709 | N34: 3.0291 | O34: 3.46605 | P34: 3.53395 | Q34: 3.46605 | R34: 3.53395 | S34: 3.9612 | T34: 4.0388 | U34: 26.24295 | V34: 26.75705 | W34: 19.806 | X34: 20.194 | Y34: 18.8157 | Z34: 19.1843 | AA34: 20.7963 | AB34: 21.2037 | AC34: 20.30115 | AD34: 20.69885 | AE34: 14.8545 | AF34: 15.1455 | AG34: 15.8448 | AH34: 16.1552 | AI34: 14.35935 | AJ34: 14.64065 | AK34: 14.8545 | AL34: 15.1455 | AM34: 14.8545 | AN34: 15.1455 | AO34: 9.903 | AP34: 10.097 | AQ34: 10.39815 | AR34: 10.60185 | AS34: 8.41755 | AT34: 8.58245 | AU34: 7.9224 | AV34: 8.0776 | AW34: 5.44665 | AX34: 5.55335 | AY34: 6.9321 | AZ34: 7.0679 | BA34: 9 | BB34: 1 | BC34: 266 | BD34: 20 | BE34: 19 | BF34: 106 | BG34: 12 | BH34: 21 | BI34: 84 | BJ34: 58 | BK34: 29
A35: 150808 | C35: 28 | D35: 150808 | E35: DISTRITO PACCHO | F35: 2227 | H35: 1102.69905 | I35: 1124.30095 | K35: 8.9127 | L35: 9.0873 | M35: 7.42725 | N35: 7.57275 | O35: 9.903 | P35: 10.097 | Q35: 11.38845 | R35: 11.61155 | S35: 11.8836 | T35: 12.1164 | U35: 83.68035 | V35: 85.31965 | W35: 92.0979 | X35: 93.9021 | Y35: 58.92285 | Z35: 60.07715 | AA35: 63.3792 | AB35: 64.6208 | AC35: 63.3792 | AD35: 64.6208 | AE35: 64.86465 | AF35: 66.13535 | AG35: 70.80645 | AH35: 72.19355 | AI35: 76.2531 | AJ35: 77.7469 | AK35: 62.3889 | AL35: 63.6111 | AM35: 62.88405 | AN35: 64.11595 | AO35: 64.86465 | AP35: 66.13535 | AQ35: 77.73855 | AR35: 79.26145 | AS35: 73.2822 | AT35: 74.7178 | AU35: 60.4083 | AV35: 61.5917 | AW35: 40.10715 | AX35: 40.89285 | AY35: 38.12655 | AZ35: 38.87345 | BA35: 35 | BB35: 2 | BC35: 1178 | BD35: 90 | BE35: 59 | BF35: 414 | BG35: 47 | BH35: 91 | BI35: 331 | BJ35: 272 | BK35: 189
B36: 05 | C36: 29 | D36: 5650 | E36: P.S. PACCHO | F36: 824 | H36: 408.0036 | I36: 415.9964 | K36: 3.46605 | L36: 3.53395 | M36: 2.9709 | N36: 3.0291 | O36: 3.46605 | P36: 3.53395 | Q36: 4.45635 | R36: 4.54365 | S36: 3.9612 | T36: 4.0388 | U36: 31.19445 | V36: 31.80555 | W36: 34.16535 | X36: 34.83465 | Y36: 22.28175 | Z36: 22.71825 | AA36: 23.27205 | AB36: 23.72795 | AC36: 23.27205 | AD36: 23.72795 | AE36: 23.7672 | AF36: 24.2328 | AG36: 26.24295 | AH36: 26.75705 | AI36: 28.22355 | AJ36: 28.77645 | AK36: 23.27205 | AL36: 23.72795 | AM36: 23.27205 | AN36: 23.72795 | AO36: 23.7672 | AP36: 24.2328 | AQ36: 28.7187 | AR36: 29.2813 | AS36: 27.23325 | AT36: 27.76675 | AU36: 22.28175 | AV36: 22.71825 | AW36: 14.8545 | AX36: 15.1455 | AY36: 13.8642 | AZ36: 14.1358 | BA36: 13 | BB36: 1 | BC36: 435 | BD36: 33 | BE36: 21 | BF36: 153 | BG36: 18 | BH36: 34 | BI36: 114 | BJ36: 92 | BK36: 77
B37: 05 | C37: 30 | D37: 5651 | E37: P.S. LACSANGA | F37: 624 | H37: 308.9736 | I37: 315.0264 | K37: 2.47575 | L37: 2.52425 | M37: 1.9806 | N37: 2.0194 | O37: 2.9709 | P37: 3.0291 | Q37: 2.9709 | R37: 3.0291 | S37: 3.46605 | T37: 3.53395 | U37: 23.27205 | V37: 23.72795 | W37: 25.7478 | X37: 26.2522 | Y37: 16.33995 | Z37: 16.66005 | AA37: 17.8254 | AB37: 18.1746 | AC37: 17.8254 | AD37: 18.1746 | AE37: 18.32055 | AF37: 18.67945 | AG37: 19.806 | AH37: 20.194 | AI37: 21.29145 | AJ37: 21.70855 | AK37: 17.33025 | AL37: 17.66975 | AM37: 17.8254 | AN37: 18.1746 | AO37: 18.32055 | AP37: 18.67945 | AQ37: 21.7866 | AR37: 22.2134 | AS37: 20.30115 | AT37: 20.69885 | AU37: 16.8351 | AV37: 17.1649 | AW37: 11.38845 | AX37: 11.61155 | AY37: 10.8933 | AZ37: 11.1067 | BA37: 10 | BB37: 1 | BC37: 330 | BD37: 25 | BE37: 17 | BF37: 116 | BG37: 13 | BH37: 25 | BI37: 90 | BJ37: 75 | BK37: 55
B38: 05 | C38: 31 | D38: 5653 | E38: P.S. MUZGA | F38: 334 | H38: 165.3801 | I38: 168.6199 | K38: 1.48545 | L38: 1.51455 | M38: 0.9903 | N38: 1.0097 | O38: 1.48545 | P38: 1.51455 | Q38: 1.48545 | R38: 1.51455 | S38: 1.9806 | T38: 2.0194 | U38: 12.37875 | V38: 12.62125 | W38: 13.8642 | X38: 14.1358 | Y38: 8.41755 | Z38: 8.58245 | AA38: 9.40785 | AB38: 9.59215 | AC38: 9.40785 | AD38: 9.59215 | AE38: 9.903 | AF38: 10.097 | AG38: 10.39815 | AH38: 10.60185 | AI38: 11.38845 | AJ38: 11.61155 | AK38: 9.40785 | AL38: 9.59215 | AM38: 9.40785 | AN38: 9.59215 | AO38: 9.903 | AP38: 10.097 | AQ38: 11.8836 | AR38: 12.1164 | AS38: 10.8933 | AT38: 11.1067 | AU38: 9.40785 | AV38: 9.59215 | AW38: 5.9418 | AX38: 6.0582 | AY38: 5.9418 | AZ38: 6.0582 | BA38: 5 | BB38: 0 | BC38: 177 | BD38: 14 | BE38: 9 | BF38: 62 | BG38: 7 | BH38: 14 | BI38: 54 | BJ38: 45 | BK38: 25
B39: 05 | C39: 32 | D39: 5652 | E39: P.S. AYARANGA | F39: 445 | H39: 220.34175 | I39: 224.65825 | K39: 1.48545 | L39: 1.51455 | M39: 1.48545 | N39: 1.51455 | O39: 1.9806 | P39: 2.0194 | Q39: 2.47575 | R39: 2.52425 | S39: 2.47575 | T39: 2.52425 | U39: 16.8351 | V39: 17.1649 | W39: 18.32055 | X39: 18.67945 | Y39: 11.8836 | Z39: 12.1164 | AA39: 12.8739 | AB39: 13.1261 | AC39: 12.8739 | AD39: 13.1261 | AE39: 12.8739 | AF39: 13.1261 | AG39: 14.35935 | AH39: 14.64065 | AI39: 15.34965 | AJ39: 15.65035 | AK39: 12.37875 | AL39: 12.62125 | AM39: 12.37875 | AN39: 12.62125 | AO39: 12.8739 | AP39: 13.1261 | AQ39: 15.34965 | AR39: 15.65035 | AS39: 14.8545 | AT39: 15.1455 | AU39: 11.8836 | AV39: 12.1164 | AW39: 7.9224 | AX39: 8.0776 | AY39: 7.42725 | AZ39: 7.57275 | BA39: 7 | BB39: 0 | BC39: 236 | BD39: 18 | BE39: 12 | BF39: 83 | BG39: 9 | BH39: 18 | BI39: 73 | BJ39: 60 | BK39: 32
A40: 150809 | C40: 33 | D40: 150809 | E40: DISTRITO SANTA LEONOR | F40: 1467 | H40: 726.38505 | I40: 740.61495 | K40: 5.44665 | L40: 5.55335 | M40: 3.9612 | N40: 4.0388 | O40: 8.9127 | P40: 9.0873 | Q40: 6.9321 | R40: 7.0679 | S40: 6.43695 | T40: 6.56305 | U40: 58.92285 | V40: 60.07715 | W40: 84.1755 | X40: 85.8245 | Y40: 52.4859 | Z40: 53.5141 | AA40: 45.5538 | AB40: 46.4462 | AC40: 36.14595 | AD40: 36.85405 | AE40: 35.15565 | AF40: 35.84435 | AG40: 45.5538 | AH40: 46.4462 | AI40: 47.5344 | AJ40: 48.4656 | AK40: 46.04895 | AL40: 46.95105 | AM40: 52.98105 | AN40: 54.01895 | AO40: 39.11685 | AP40: 39.88315 | AQ40: 43.5732 | AR40: 44.4268 | AS40: 31.6896 | AT40: 32.3104 | AU40: 30.6993 | AV40: 31.3007 | AW40: 24.26235 | AX40: 24.73765 | AY40: 20.7963 | AZ40: 21.2037 | BA40: 26 | BB40: 2 | BC40: 782 | BD40: 83 | BE40: 53 | BF40: 266 | BG40: 36 | BH40: 69 | BI40: 197 | BJ40: 158 | BK40: 122
B41: 05 | C41: 34 | D41: 5645 | E41: P.S. CHIUCHIN | F41: 807 | H41: 399.58605 | I41: 407.41395 | K41: 2.9709 | L41: 3.0291 | M41: 2.47575 | N41: 2.52425 | O41: 4.9515 | P41: 5.0485 | Q41: 3.46605 | R41: 3.53395 | S41: 3.46605 | T41: 3.53395 | U41: 32.18475 | V41: 32.81525 | W41: 46.5441 | X41: 47.4559 | Y41: 29.709 | Z41: 30.291 | AA41: 24.7575 | AB41: 25.2425 | AC41: 19.806 | AD41: 20.194 | AE41: 19.31085 | AF41: 19.68915 | AG41: 24.7575 | AH41: 25.2425 | AI41: 26.24295 | AJ41: 26.75705 | AK41: 25.25265 | AL41: 25.74735 | AM41: 29.21385 | AN41: 29.78615 | AO41: 21.7866 | AP41: 22.2134 | AQ41: 23.7672 | AR41: 24.2328 | AS41: 17.33025 | AT41: 17.66975 | AU41: 16.8351 | AV41: 17.1649 | AW41: 13.36905 | AX41: 13.63095 | AY41: 11.38845 | AZ41: 11.61155 | BA41: 14 | BB41: 1 | BC41: 430 | BD41: 46 | BE41: 29 | BF41: 146 | BG41: 20 | BH41: 40 | BI41: 109 | BJ41: 92 | BK41: 72
B42: 05 | C42: 35 | D42: 5646 | E42: P.S. PARQUIN | F42: 264 | H42: 130.7196 | I42: 133.2804 | K42: 0.9903 | L42: 1.0097 | M42: 0.49515 | N42: 0.50485 | O42: 1.48545 | P42: 1.51455 | Q42: 1.48545 | R42: 1.51455 | S42: 0.9903 | T42: 1.0097 | U42: 10.8933 | V42: 11.1067 | W42: 14.8545 | X42: 15.1455 | Y42: 8.9127 | Z42: 9.0873 | AA42: 8.41755 | AB42: 8.58245 | AC42: 6.43695 | AD42: 6.56305 | AE42: 6.43695 | AF42: 6.56305 | AG42: 8.41755 | AH42: 8.58245 | AI42: 8.41755 | AJ42: 8.58245 | AK42: 8.41755 | AL42: 8.58245 | AM42: 9.40785 | AN42: 9.59215 | AO42: 6.9321 | AP42: 7.0679 | AQ42: 7.9224 | AR42: 8.0776 | AS42: 5.9418 | AT42: 6.0582 | AU42: 5.44665 | AV42: 5.55335 | AW42: 4.45635 | AX42: 4.54365 | AY42: 3.9612 | AZ42: 4.0388 | BA42: 5 | BB42: 0 | BC42: 141 | BD42: 15 | BE42: 10 | BF42: 48 | BG42: 6 | BH42: 12 | BI42: 36 | BJ42: 26 | BK42: 16
B43: 05 | C43: 36 | D43: 5647 | E43: P.S. JUCUL | F43: 396 | H43: 196.0794 | I43: 199.9206 | K43: 1.48545 | L43: 1.51455 | M43: 0.9903 | N43: 1.0097 | O43: 2.47575 | P43: 2.52425 | Q43: 1.9806 | R43: 2.0194 | S43: 1.9806 | T43: 2.0194 | U43: 15.8448 | V43: 16.1552 | W43: 22.7769 | X43: 23.2231 | Y43: 13.8642 | Z43: 14.1358 | AA43: 12.37875 | AB43: 12.62125 | AC43: 9.903 | AD43: 10.097 | AE43: 9.40785 | AF43: 9.59215 | AG43: 12.37875 | AH43: 12.62125 | AI43: 12.8739 | AJ43: 13.1261 | AK43: 12.37875 | AL43: 12.62125 | AM43: 14.35935 | AN43: 14.64065 | AO43: 10.39815 | AP43: 10.60185 | AQ43: 11.8836 | AR43: 12.1164 | AS43: 8.41755 | AT43: 8.58245 | AU43: 8.41755 | AV43: 8.58245 | AW43: 6.43695 | AX43: 6.56305 | AY43: 5.44665 | AZ43: 5.55335 | BA43: 7 | BB43: 1 | BC43: 211 | BD43: 22 | BE43: 14 | BF43: 72 | BG43: 10 | BH43: 17 | BI43: 52 | BJ43: 40 | BK43: 34
A44: 150810 | C44: 37 | D44: 150810 | E44: DISTRITO SANTA MARIA | F44: 34986 | H44: 17323.3179 | I44: 17662.6821 | K44: 228.7593 | L44: 233.2407 | M44: 280.2549 | N44: 285.7451 | O44: 233.21565 | P44: 237.78435 | Q44: 261.4392 | R44: 266.5608 | S44: 314.42025 | T44: 320.57975 | U44: 1453.26525 | V44: 1481.73475 | W44: 1612.70355 | X44: 1644.29645 | Y44: 1528.0329 | Z44: 1557.9671 | AA44: 1436.43015 | AB44: 1464.56985 | AC44: 1335.41955 | AD44: 1361.58045 | AE44: 1207.67085 | AF44: 1231.32915 | AG44: 1259.6616 | AH44: 1284.3384 | AI44: 1106.1651 | AJ44: 1127.8349 | AK44: 924.44505 | AL44: 942.55495 | AM44: 826.40535 | AN44: 842.59465 | AO44: 836.30835 | AP44: 852.69165 | AQ44: 707.0742 | AR44: 720.9258 | AS44: 544.16985 | AT44: 554.83015 | AU44: 470.88765 | AV44: 480.11235 | AW44: 331.7505 | AX44: 338.2495 | AY44: 424.8387 | AZ44: 433.1613 | BA44: 581 | BB44: 46 | BC44: 18007 | BD44: 1596 | BE44: 1543 | BF44: 7568 | BG44: 791 | BH44: 1868 | BI44: 6442 | BJ44: 4564 | BK44: 2418
B45: 02 | C45: 38 | D45: 5668 | E45: C.S. SANTA MARIA | F45: 9796 | H45: 4850.4894 | I45: 4945.5106 | K45: 63.87435 | L45: 65.12565 | M45: 78.2337 | N45: 79.7663 | O45: 64.86465 | P45: 66.13535 | Q45: 73.2822 | R45: 74.7178 | S45: 88.1367 | T45: 89.8633 | U45: 407.0133 | V45: 414.9867 | W45: 452.07195 | X45: 460.92805 | Y45: 427.8096 | Z45: 436.1904 | AA45: 402.55695 | AB45: 410.44305 | AC45: 373.83825 | AD45: 381.16175 | AE45: 338.18745 | AF45: 344.81255 | AG45: 352.5468 | AH45: 359.4532 | AI45: 309.9639 | AJ45: 316.0361 | AK45: 258.96345 | AL45: 264.03655 | AM45: 231.7302 | AN45: 236.2698 | AO45: 234.20595 | AP45: 238.79405 | AQ45: 198.06 | AR45: 201.94 | AS45: 152.01105 | AT45: 154.98895 | AU45: 131.7099 | AV45: 134.2901 | AW45: 92.59305 | AX45: 94.40695 | AY45: 118.836 | AZ45: 121.164 | BA45: 163 | BB45: 13 | BC45: 5042 | BD45: 447 | BE45: 433 | BF45: 2120 | BG45: 222 | BH45: 524 | BI45: 1807 | BJ45: 1279 | BK45: 676
B46: 02 | C46: 39 | D46: 5669 | E46: P.S. CHONTA | F46: 5248 | H46: 2598.5472 | I46: 2649.4528 | K46: 34.16535 | L46: 34.83465 | M46: 42.08775 | N46: 42.91225 | O46: 35.15565 | P46: 35.84435 | Q46: 39.11685 | R46: 39.88315 | S46: 47.03925 | T46: 47.96075 | U46: 217.866 | V46: 222.134 | W46: 241.6332 | X46: 246.3668 | Y46: 229.25445 | Z46: 233.74555 | AA46: 215.39025 | AB46: 219.60975 | AC46: 200.53575 | AD46: 204.46425 | AE46: 181.2249 | AF46: 184.7751 | AG46: 189.1473 | AH46: 192.8527 | AI46: 165.87525 | AJ46: 169.12475 | AK46: 138.642 | AL46: 141.358 | AM46: 123.7875 | AN46: 126.2125 | AO46: 125.27295 | AP46: 127.72705 | AQ46: 105.9621 | AR46: 108.0379 | AS46: 81.69975 | AT46: 83.30025 | AU46: 70.80645 | AV46: 72.19355 | AW46: 50.01015 | AX46: 50.98985 | AY46: 63.87435 | AZ46: 65.12565 | BA46: 87 | BB46: 7 | BC46: 2701 | BD46: 239 | BE46: 231 | BF46: 1135 | BG46: 119 | BH46: 280 | BI46: 963 | BJ46: 684 | BK46: 363
B47: 02 | C47: 40 | D47: 5671 | E47: P.S. 1RO DE MAYO | F47: 2799 | H47: 1385.92485 | I47: 1413.07515 | K47: 18.32055 | L47: 18.67945 | M47: 22.28175 | N47: 22.71825 | O47: 18.8157 | P47: 19.1843 | Q47: 20.7963 | R47: 21.2037 | S47: 25.25265 | T47: 25.74735 | U47: 116.36025 | V47: 118.63975 | W47: 128.739 | X47: 131.261 | Y47: 122.30205 | Z47: 124.69795 | AA47: 114.8748 | AB47: 117.1252 | AC47: 106.9524 | AD47: 109.0476 | AE47: 96.55425 | AF47: 98.44575 | AG47: 101.0106 | AH47: 102.9894 | AI47: 88.1367 | AJ47: 89.8633 | AK47: 73.77735 | AL47: 75.22265 | AM47: 66.3501 | AN47: 67.6499 | AO47: 66.84525 | AP47: 68.15475 | AQ47: 56.4471 | AR47: 57.5529 | AS47: 43.5732 | AT47: 44.4268 | AU47: 37.6314 | AV47: 38.3686 | AW47: 26.7381 | AX47: 27.2619 | AY47: 34.16535 | AZ47: 34.83465 | BA47: 46 | BB47: 4 | BC47: 1441 | BD47: 128 | BE47: 123 | BF47: 605 | BG47: 63 | BH47: 150 | BI47: 518 | BJ47: 367 | BK47: 193
B48: 02 | C48: 41 | D48: 5670 | E48: P.S. ZAPATA | F48: 9796 | H48: 4850.4894 | I48: 4945.5106 | K48: 63.87435 | L48: 65.12565 | M48: 78.2337 | N48: 79.7663 | O48: 65.3598 | P48: 66.6402 | Q48: 73.2822 | R48: 74.7178 | S48: 88.1367 | T48: 89.8633 | U48: 407.0133 | V48: 414.9867 | W48: 451.5768 | X48: 460.4232 | Y48: 428.30475 | Z48: 436.69525 | AA48: 402.0618 | AB48: 409.9382 | AC48: 373.83825 | AD48: 381.16175 | AE48: 338.18745 | AF48: 344.81255 | AG48: 352.5468 | AH48: 359.4532 | AI48: 309.9639 | AJ48: 316.0361 | AK48: 258.96345 | AL48: 264.03655 | AM48: 231.23505 | AN48: 235.76495 | AO48: 234.20595 | AP48: 238.79405 | AQ48: 198.06 | AR48: 201.94 | AS48: 152.5062 | AT48: 155.4938 | AU48: 131.7099 | AV48: 134.2901 | AW48: 92.59305 | AX48: 94.40695 | AY48: 118.836 | AZ48: 121.164 | BA48: 163 | BB48: 12 | BC48: 5042 | BD48: 447 | BE48: 432 | BF48: 2119 | BG48: 221 | BH48: 524 | BI48: 1806 | BJ48: 1279 | BK48: 676
B49: 02 | C49: 42 | D49: 5672 | E49: P.S. SAN BARTOLOME | F49: 7347 | H49: 3637.86705 | I49: 3709.13295 | K49: 48.5247 | L49: 49.4753 | M49: 59.418 | N49: 60.582 | O49: 49.01985 | P49: 49.98015 | Q49: 54.96165 | R49: 56.03835 | S49: 65.85495 | T49: 67.14505 | U49: 305.0124 | V49: 310.9876 | W49: 338.6826 | X49: 345.3174 | Y49: 320.36205 | Z49: 326.63795 | AA49: 301.54635 | AB49: 307.45365 | AC49: 280.2549 | AD49: 285.7451 | AE49: 253.5168 | AF49: 258.4832 | AG49: 264.4101 | AH49: 269.5899 | AI49: 232.22535 | AJ49: 236.77465 | AK49: 194.0988 | AL49: 197.9012 | AM49: 173.3025 | AN49: 176.6975 | AO49: 175.77825 | AP49: 179.22175 | AQ49: 148.545 | AR49: 151.455 | AS49: 114.37965 | AT49: 116.62035 | AU49: 99.03 | AV49: 100.97 | AW49: 69.81615 | AX49: 71.18385 | AY49: 89.127 | AZ49: 90.873 | BA49: 122 | BB49: 10 | BC49: 3781 | BD49: 335 | BE49: 324 | BF49: 1589 | BG49: 166 | BH49: 390 | BI49: 1348 | BJ49: 955 | BK49: 510
A50: 150811 | C50: 43 | D50: 150811 | E50: DISTRITO SAYAN | F50: 24500 | H50: 12131.175 | I50: 12368.825 | K50: 152.01105 | L50: 154.98895 | M50: 214.8951 | N50: 219.1049 | O50: 136.6614 | P50: 139.3386 | Q50: 167.85585 | R50: 171.14415 | S50: 125.27295 | T50: 127.72705 | U50: 1068.5337 | V50: 1089.4663 | W50: 1190.83575 | X50: 1214.16425 | Y50: 1161.6219 | Z50: 1184.3781 | AA50: 1153.6995 | AB50: 1176.3005 | AC50: 1083.3882 | AD50: 1104.6118 | AE50: 917.51295 | AF50: 935.48705 | AG50: 885.3282 | AH50: 902.6718 | AI50: 763.02615 | AJ50: 777.97385 | AK50: 693.21 | AL50: 706.79 | AM50: 557.04375 | AN50: 567.95625 | AO50: 507.0336 | AP50: 516.9664 | AQ50: 418.40175 | AR50: 426.59825 | AS50: 327.29415 | AT50: 333.70585 | AU50: 270.84705 | AV50: 276.15295 | AW50: 174.2928 | AX50: 177.7072 | AY50: 162.4092 | AZ50: 165.5908 | BA50: 448 | BB50: 35 | BC50: 12953 | BD50: 1185 | BE50: 1179 | BF50: 5746 | BG50: 610 | BH50: 1454 | BI50: 4751 | BJ50: 3194 | BK50: 1435
B51: 03 | C51: 44 | D51: 5780 | E51: C.S. 9 DE OCTUBRE | F51: 9800 | H51: 4852.47 | I51: 4947.53 | K51: 60.90345 | L51: 62.09655 | M51: 86.1561 | N51: 87.8439 | O51: 54.4665 | P51: 55.5335 | Q51: 67.3404 | R51: 68.6596 | S51: 50.01015 | T51: 50.98985 | U51: 427.8096 | V51: 436.1904 | W51: 476.3343 | X51: 485.6657 | Y51: 464.4507 | Z51: 473.5493 | AA51: 461.4798 | AB51: 470.5202 | AC51: 433.25625 | AD51: 441.74375 | AE51: 366.90615 | AF51: 374.09385 | AG51: 354.03225 | AH51: 360.96775 | AI51: 305.0124 | AJ51: 310.9876 | AK51: 277.284 | AL51: 282.716 | AM51: 222.32235 | AN51: 226.67765 | AO51: 203.0115 | AP51: 206.9885 | AQ51: 167.85585 | AR51: 171.14415 | AS51: 131.21475 | AT51: 133.78525 | AU51: 108.43785 | AV51: 110.56215 | AW51: 69.321 | AX51: 70.679 | AY51: 64.86465 | AZ51: 66.13535 | BA51: 180 | BB51: 13 | BC51: 5181 | BD51: 473 | BE51: 471 | BF51: 2298 | BG51: 244 | BH51: 580 | BI51: 1895 | BJ51: 1276 | BK51: 576
B52: 03 | C52: 45 | D52: 5774 | E52: P.S. LA MERCED | F52: 5635 | H52: 2790.17025 | I52: 2844.82975 | K52: 35.15565 | L52: 35.84435 | M52: 49.515 | N52: 50.485 | O52: 31.19445 | P52: 31.80555 | Q52: 38.6217 | R52: 39.3783 | S52: 28.7187 | T52: 29.2813 | U52: 245.5944 | V52: 250.4056 | W52: 274.3131 | X52: 279.6869 | Y52: 267.381 | Z52: 272.619 | AA52: 265.4004 | AB52: 270.5996 | AC52: 249.06045 | AD52: 253.93955 | AE52: 210.9339 | AF52: 215.0661 | AG52: 203.50665 | AH52: 207.49335 | AI52: 175.2831 | AJ52: 178.7169 | AK52: 159.4383 | AL52: 162.5617 | AM52: 128.24385 | AN52: 130.75615 | AO52: 116.8554 | AP52: 119.1446 | AQ52: 96.0591 | AR52: 97.9409 | AS52: 75.2628 | AT52: 76.7372 | AU52: 62.3889 | AV52: 63.6111 | AW52: 40.10715 | AX52: 40.89285 | AY52: 37.13625 | AZ52: 37.86375 | BA52: 103 | BB52: 8 | BC52: 2979 | BD52: 273 | BE52: 271 | BF52: 1322 | BG52: 140 | BH52: 335 | BI52: 1095 | BJ52: 735 | BK52: 332
B53: 03 | C53: 46 | D53: 5781 | E53: P.S. LA VILLA | F53: 735 | H53: 363.93525 | I53: 371.06475 | K53: 4.45635 | L53: 4.54365 | M53: 6.43695 | N53: 6.56305 | O53: 3.9612 | P53: 4.0388 | Q53: 4.9515 | R53: 5.0485 | S53: 3.9612 | T53: 4.0388 | U53: 32.18475 | V53: 32.81525 | W53: 35.15565 | X53: 35.84435 | Y53: 34.6605 | Z53: 35.3395 | AA53: 34.6605 | AB53: 35.3395 | AC53: 32.6799 | AD53: 33.3201 | AE53: 27.7284 | AF53: 28.2716 | AG53: 26.7381 | AH53: 27.2619 | AI53: 22.7769 | AJ53: 23.2231 | AK53: 20.7963 | AL53: 21.2037 | AM53: 16.8351 | AN53: 17.1649 | AO53: 15.34965 | AP53: 15.65035 | AQ53: 12.37875 | AR53: 12.62125 | AS53: 9.903 | AT53: 10.097 | AU53: 7.9224 | AV53: 8.0776 | AW53: 5.44665 | AX53: 5.55335 | AY53: 4.9515 | AZ53: 5.0485 | BA53: 13 | BB53: 1 | BC53: 389 | BD53: 36 | BE53: 35 | BF53: 172 | BG53: 18 | BH53: 41 | BI53: 141 | BJ53: 94 | BK53: 44
B54: 03 | C54: 47 | D54: 5775 | E54: P.S. EL AHORCADO | F54: 1225 | H54: 606.55875 | I54: 618.44125 | K54: 7.42725 | L54: 7.57275 | M54: 10.8933 | N54: 11.1067 | O54: 6.9321 | P54: 7.0679 | Q54: 8.41755 | R54: 8.58245 | S54: 6.43695 | T54: 6.56305 | U54: 53.4762 | V54: 54.5238 | W54: 59.418 | X54: 60.582 | Y54: 58.4277 | Z54: 59.5723 | AA54: 57.93255 | AB54: 59.06745 | AC54: 53.97135 | AD54: 55.02865 | AE54: 46.04895 | AF54: 46.95105 | AG54: 44.06835 | AH54: 44.93165 | AI54: 38.12655 | AJ54: 38.87345 | AK54: 34.6605 | AL54: 35.3395 | AM54: 27.7284 | AN54: 28.2716 | AO54: 25.25265 | AP54: 25.74735 | AQ54: 20.7963 | AR54: 21.2037 | AS54: 16.33995 | AT54: 16.66005 | AU54: 13.36905 | AV54: 13.63095 | AW54: 8.9127 | AX54: 9.0873 | AY54: 7.9224 | AZ54: 8.0776 | BA54: 22 | BB54: 2 | BC54: 648 | BD54: 59 | BE54: 59 | BF54: 287 | BG54: 31 | BH54: 76 | BI54: 235 | BJ54: 157 | BK54: 70
B55: 03 | C55: 48 | D55: 5776 | E55: P.S. SAYAN | F55: 6125 | H55: 3032.79375 | I55: 3092.20625 | K55: 38.12655 | L55: 38.87345 | M55: 53.97135 | N55: 55.02865 | O55: 34.16535 | P55: 34.83465 | Q55: 41.5926 | R55: 42.4074 | S55: 31.19445 | T55: 31.80555 | U55: 266.88585 | V55: 272.11415 | W55: 297.58515 | X55: 303.41485 | Y55: 291.1482 | Z55: 296.8518 | AA55: 288.67245 | AB55: 294.32755 | AC55: 270.84705 | AD55: 276.15295 | AE55: 229.25445 | AF55: 233.74555 | AG55: 221.33205 | AH55: 225.66795 | AI55: 190.63275 | AJ55: 194.36725 | AK55: 173.3025 | AL55: 176.6975 | AM55: 139.13715 | AN55: 141.86285 | AO55: 126.7584 | AP55: 129.2416 | AQ55: 104.47665 | AR55: 106.52335 | AS55: 81.69975 | AT55: 83.30025 | AU55: 67.83555 | AV55: 69.16445 | AW55: 43.5732 | AX55: 44.4268 | AY55: 40.6023 | AZ55: 41.3977 | BA55: 112 | BB55: 9 | BC55: 3238 | BD55: 296 | BE55: 295 | BF55: 1437 | BG55: 153 | BH55: 364 | BI55: 1193 | BJ55: 804 | BK55: 355
B56: 03 | C56: 49 | D56: 5777 | E56: P.S. CHAMBARA | F56: 490 | H56: 242.6235 | I56: 247.3765 | K56: 2.9709 | L56: 3.0291 | M56: 3.9612 | N56: 4.0388 | O56: 2.9709 | P56: 3.0291 | Q56: 3.46605 | R56: 3.53395 | S56: 2.47575 | T56: 2.52425 | U56: 21.29145 | V56: 21.70855 | W56: 23.7672 | X56: 24.2328 | Y56: 23.27205 | Z56: 23.72795 | AA56: 22.7769 | AB56: 23.2231 | AC56: 21.7866 | AD56: 22.2134 | AE56: 18.32055 | AF56: 18.67945 | AG56: 17.8254 | AH56: 18.1746 | AI56: 15.34965 | AJ56: 15.65035 | AK56: 13.8642 | AL56: 14.1358 | AM56: 11.38845 | AN56: 11.61155 | AO56: 9.903 | AP56: 10.097 | AQ56: 8.41755 | AR56: 8.58245 | AS56: 6.43695 | AT56: 6.56305 | AU56: 5.44665 | AV56: 5.55335 | AW56: 3.46605 | AX56: 3.53395 | AY56: 3.46605 | AZ56: 3.53395 | BA56: 9 | BB56: 1 | BC56: 259 | BD56: 24 | BE56: 24 | BF56: 115 | BG56: 12 | BH56: 29 | BI56: 96 | BJ56: 64 | BK56: 29
B57: 03 | C57: 50 | D57: 6726 | E57: P.S. LA UNION | F57: 490 | H57: 242.6235 | I57: 247.3765 | K57: 2.9709 | L57: 3.0291 | M57: 3.9612 | N57: 4.0388 | O57: 2.9709 | P57: 3.0291 | Q57: 3.46605 | R57: 3.53395 | S57: 2.47575 | T57: 2.52425 | U57: 21.29145 | V57: 21.70855 | W57: 24.26235 | X57: 24.73765 | Y57: 22.28175 | Z57: 22.71825 | AA57: 22.7769 | AB57: 23.2231 | AC57: 21.7866 | AD57: 22.2134 | AE57: 18.32055 | AF57: 18.67945 | AG57: 17.8254 | AH57: 18.1746 | AI57: 15.8448 | AJ57: 16.1552 | AK57: 13.8642 | AL57: 14.1358 | AM57: 11.38845 | AN57: 11.61155 | AO57: 9.903 | AP57: 10.097 | AQ57: 8.41755 | AR57: 8.58245 | AS57: 6.43695 | AT57: 6.56305 | AU57: 5.44665 | AV57: 5.55335 | AW57: 3.46605 | AX57: 3.53395 | AY57: 3.46605 | AZ57: 3.53395 | BA57: 9 | BB57: 1 | BC57: 259 | BD57: 24 | BE57: 24 | BF57: 115 | BG57: 12 | BH57: 29 | BI57: 96 | BJ57: 64 | BK57: 29
A58: 150812 | C58: 51 | D58: 150812 | E58: DISTRITO VEGUETA | F58: 23319 | H58: 11546.40285 | I58: 11772.59715 | K58: 208.45815 | L58: 212.54185 | M58: 207.963 | N58: 212.037 | O58: 184.1958 | P58: 187.8042 | Q58: 257.478 | R58: 262.522 | S58: 239.6526 | T58: 244.3474 | U58: 973.96005 | V58: 993.03995 | W58: 1071.5046 | X58: 1092.4954 | Y58: 1085.3688 | Z58: 1106.6312 | AA58: 1043.7762 | AB58: 1064.2238 | AC58: 910.58085 | AD58: 928.41915 | AE58: 754.6086 | AF58: 769.3914 | AG58: 739.7541 | AH58: 754.2459 | AI58: 708.55965 | AJ58: 722.44035 | AK58: 632.30655 | AL58: 644.69345 | AM58: 544.665 | AN58: 555.335 | AO58: 502.57725 | AP58: 512.42275 | AQ58: 414.44055 | AR58: 422.55945 | AS58: 339.6729 | AT58: 346.3271 | AU58: 286.69185 | AV58: 292.30815 | AW58: 208.45815 | AX58: 212.54185 | AY58: 231.7302 | AZ58: 236.2698 | BA58: 467 | BB58: 37 | BC58: 11844 | BD58: 1063 | BE58: 1099 | BF58: 4993 | BG58: 635 | BH58: 1307 | BI58: 4215 | BJ58: 2874 | BK58: 1482
B59: 04 | C59: 52 | D59: 5673 | E59: C.S. VEGUETA | F59: 6996 | H59: 3464.0694 | I59: 3531.9306 | K59: 62.3889 | L59: 63.6111 | M59: 62.3889 | N59: 63.6111 | O59: 55.4568 | P59: 56.5432 | Q59: 77.2434 | R59: 78.7566 | S59: 71.79675 | T59: 73.20325 | U59: 292.1385 | V59: 297.8615 | W59: 321.8475 | X59: 328.1525 | Y59: 325.8087 | Z59: 332.1913 | AA59: 312.9348 | AB59: 319.0652 | AC59: 273.3228 | AD59: 278.6772 | AE59: 226.28355 | AF59: 230.71645 | AG59: 221.8272 | AH59: 226.1728 | AI59: 212.41935 | AJ59: 216.58065 | AK59: 189.64245 | AL59: 193.35755 | AM59: 163.3995 | AN59: 166.6005 | AO59: 151.02075 | AP59: 153.97925 | AQ59: 124.28265 | AR59: 126.71735 | AS59: 102.0009 | AT59: 103.9991 | AU59: 86.1561 | AV59: 87.8439 | AW59: 62.3889 | AX59: 63.6111 | AY59: 69.321 | AZ59: 70.679 | BA59: 140 | BB59: 10 | BC59: 3552 | BD59: 320 | BE59: 330 | BF59: 1498 | BG59: 191 | BH59: 392 | BI59: 1263 | BJ59: 861 | BK59: 446
B60: 04 | C60: 53 | D60: 5674 | E60: P.S. MAZO | F60: 1866 | H60: 923.9499 | I60: 942.0501 | K60: 16.8351 | L60: 17.1649 | M60: 16.8351 | N60: 17.1649 | O60: 14.8545 | P60: 15.1455 | Q60: 20.7963 | R60: 21.2037 | S60: 19.31085 | T60: 19.68915 | U60: 77.73855 | V60: 79.26145 | W60: 85.66095 | X60: 87.33905 | Y60: 86.65125 | Z60: 88.34875 | AA60: 83.68035 | AB60: 85.31965 | AC60: 72.78705 | AD60: 74.21295 | AE60: 60.4083 | AF60: 61.5917 | AG60: 59.418 | AH60: 60.582 | AI60: 56.4471 | AJ60: 57.5529 | AK60: 50.5053 | AL60: 51.4947 | AM60: 43.5732 | AN60: 44.4268 | AO60: 40.10715 | AP60: 40.89285 | AQ60: 33.17505 | AR60: 33.82495 | AS60: 27.23325 | AT60: 27.76675 | AU60: 22.7769 | AV60: 23.2231 | AW60: 16.8351 | AX60: 17.1649 | AY60: 18.32055 | AZ60: 18.67945 | BA60: 37 | BB60: 3 | BC60: 948 | BD60: 85 | BE60: 88 | BF60: 399 | BG60: 51 | BH60: 106 | BI60: 336 | BJ60: 229 | BK60: 118
B61: 04 | C61: 54 | D61: 5675 | E61: P.S. PRIMAVERA | F61: 4197 | H61: 2078.14455 | I61: 2118.85545 | K61: 37.6314 | L61: 38.3686 | M61: 37.6314 | N61: 38.3686 | O61: 33.17505 | P61: 33.82495 | Q61: 46.5441 | R61: 47.4559 | S61: 43.07805 | T61: 43.92195 | U61: 175.2831 | V61: 178.7169 | W61: 192.61335 | X61: 196.38665 | Y61: 195.0891 | Z61: 198.9109 | AA61: 187.66185 | AB61: 191.33815 | AC61: 163.89465 | AD61: 167.10535 | AE61: 135.6711 | AF61: 138.3289 | AG61: 133.19535 | AH61: 135.80465 | AI61: 127.7487 | AJ61: 130.2513 | AK61: 113.8845 | AL61: 116.1155 | AM61: 98.0397 | AN61: 99.9603 | AO61: 90.61245 | AP61: 92.38755 | AQ61: 74.76765 | AR61: 76.23235 | AS61: 60.90345 | AT61: 62.09655 | AU61: 51.4956 | AV61: 52.5044 | AW61: 37.6314 | AX61: 38.3686 | AY61: 41.5926 | AZ61: 42.4074 | BA61: 84 | BB61: 7 | BC61: 2132 | BD61: 191 | BE61: 198 | BF61: 899 | BG61: 114 | BH61: 235 | BI61: 762 | BJ61: 519 | BK61: 265
B62: 04 | C62: 55 | D62: 5676 | E62: P.S. MARIATEGUI | F62: 6296 | H62: 3117.4644 | I62: 3178.5356 | K62: 56.4471 | L62: 57.5529 | M62: 55.95195 | N62: 57.04805 | O62: 49.515 | P62: 50.485 | Q62: 69.321 | R62: 70.679 | S62: 64.86465 | T62: 66.13535 | U62: 262.92465 | V62: 268.07535 | W62: 289.1676 | X62: 294.8324 | Y62: 292.63365 | Z62: 298.36635 | AA62: 282.2355 | AB62: 287.7645 | AC62: 246.08955 | AD62: 250.91045 | AE62: 204.0018 | AF62: 207.9982 | AG62: 199.54545 | AH62: 203.45455 | AI62: 191.1279 | AJ62: 194.8721 | AK62: 170.82675 | AL62: 174.17325 | AM62: 147.05955 | AN62: 149.94045 | AO62: 135.6711 | AP62: 138.3289 | AQ62: 111.9039 | AR62: 114.0961 | AS62: 91.60275 | AT62: 93.39725 | AU62: 77.2434 | AV62: 78.7566 | AW62: 56.4471 | AX62: 57.5529 | AY62: 62.88405 | AZ62: 64.11595 | BA62: 126 | BB62: 10 | BC62: 3198 | BD62: 287 | BE62: 297 | BF62: 1348 | BG62: 171 | BH62: 352 | BI62: 1140 | BJ62: 778 | BK62: 402
B63: 04 | C63: 56 | D63: 5677 | E63: P.S. MEDIO MUNDO | F63: 3498 | H63: 1732.0347 | I63: 1765.9653 | K63: 31.19445 | L63: 31.80555 | M63: 31.19445 | N63: 31.80555 | O63: 27.7284 | P63: 28.2716 | Q63: 38.6217 | R63: 39.3783 | S63: 36.14595 | T63: 36.85405 | U63: 146.5644 | V63: 149.4356 | W63: 160.4286 | X63: 163.5714 | Y63: 162.90435 | Z63: 166.09565 | AA63: 156.4674 | AB63: 159.5326 | AC63: 136.16625 | AD63: 138.83375 | AE63: 113.38935 | AF63: 115.61065 | AG63: 110.9136 | AH63: 113.0864 | AI63: 106.45725 | AJ63: 108.54275 | AK63: 94.57365 | AL63: 96.42635 | AM63: 81.69975 | AN63: 83.30025 | AO63: 75.2628 | AP63: 76.7372 | AQ63: 61.89375 | AR63: 63.10625 | AS63: 51.00045 | AT63: 51.99955 | AU63: 43.07805 | AV63: 43.92195 | AW63: 31.19445 | AX63: 31.80555 | AY63: 35.15565 | AZ63: 35.84435 | BA63: 71 | BB63: 6 | BC63: 1777 | BD63: 159 | BE63: 165 | BF63: 749 | BG63: 95 | BH63: 196 | BI63: 632 | BJ63: 431 | BK63: 221
B64: 04 | C64: 57 | D64: 5678 | E64: P.S. TIROLER | F64: 466 | H64: 230.7399 | I64: 235.2601 | K64: 3.9612 | L64: 4.0388 | M64: 3.9612 | N64: 4.0388 | O64: 3.46605 | P64: 3.53395 | Q64: 4.9515 | R64: 5.0485 | S64: 4.45635 | T64: 4.54365 | U64: 19.31085 | V64: 19.68915 | W64: 21.7866 | X64: 22.2134 | Y64: 22.28175 | Z64: 22.71825 | AA64: 20.7963 | AB64: 21.2037 | AC64: 18.32055 | AD64: 18.67945 | AE64: 14.8545 | AF64: 15.1455 | AG64: 14.8545 | AH64: 15.1455 | AI64: 14.35935 | AJ64: 14.64065 | AK64: 12.8739 | AL64: 13.1261 | AM64: 10.8933 | AN64: 11.1067 | AO64: 9.903 | AP64: 10.097 | AQ64: 8.41755 | AR64: 8.58245 | AS64: 6.9321 | AT64: 7.0679 | AU64: 5.9418 | AV64: 6.0582 | AW64: 3.9612 | AX64: 4.0388 | AY64: 4.45635 | AZ64: 4.54365 | BA64: 9 | BB64: 1 | BC64: 237 | BD64: 21 | BE64: 21 | BF64: 100 | BG64: 13 | BH64: 26 | BI64: 82 | BJ64: 56 | BK64: 30
A65: 150900 | C65: 58 | D65: 150900 | E65: PROVINCIA OYON | F65: 22430 | H65: 11106.2145 | I65: 11323.7855 | K65: 91.60275 | L65: 93.39725 | M65: 115.36995 | N65: 117.63005 | O65: 119.33115 | P65: 121.66885 | Q65: 97.0494 | R65: 98.9506 | S65: 123.7875 | T65: 126.2125 | U65: 1089.33 | V65: 1110.67 | W65: 1211.1369 | X65: 1234.8631 | Y65: 923.45475 | Z65: 941.54525 | AA65: 871.95915 | AB65: 889.04085 | AC65: 946.7268 | AD65: 965.2732 | AE65: 835.8132 | AF65: 852.1868 | AG65: 912.56145 | AH65: 930.43855 | AI65: 713.016 | AJ65: 726.984 | AK65: 628.8405 | AL65: 641.1595 | AM65: 517.43175 | AN65: 527.56825 | AO65: 462.96525 | AP65: 472.03475 | AQ65: 361.4595 | AR65: 368.5405 | AS65: 362.4498 | AT65: 369.5502 | AU65: 295.1094 | AV65: 300.8906 | AW65: 233.21565 | AX65: 237.78435 | AY65: 193.60365 | AZ65: 197.39635 | BA65: 526 | BB65: 38 | BC65: 12244 | BD65: 1206 | BE65: 937 | BF65: 5134 | BG65: 719 | BH65: 1256 | BI65: 4327 | BJ65: 3086 | BK65: 1334
A66: 150901 | C66: 59 | D66: 150901 | E66: DISTRITO OYON | F66: 14060 | H66: 6961.809 | I66: 7098.191 | K66: 56.94225 | L66: 58.05775 | M66: 66.84525 | N66: 68.15475 | O66: 70.80645 | P66: 72.19355 | Q66: 47.5344 | R66: 48.4656 | S66: 66.84525 | T66: 68.15475 | U66: 738.26865 | V66: 752.73135 | W66: 814.0266 | X66: 829.9734 | Y66: 612.0054 | Z66: 623.9946 | AA66: 581.3061 | AB66: 592.6939 | AC66: 665.97675 | AD66: 679.02325 | AE66: 581.80125 | AF66: 593.19875 | AG66: 620.42295 | AH66: 632.57705 | AI66: 453.5574 | AJ66: 462.4426 | AK66: 385.2267 | AL66: 392.7733 | AM66: 314.42025 | AN66: 320.57975 | AO66: 244.6041 | AP66: 249.3959 | AQ66: 163.89465 | AR66: 167.10535 | AS66: 169.3413 | AT66: 172.6587 | AU66: 122.30205 | AV66: 124.69795 | AW66: 100.0203 | AX66: 101.9797 | AY66: 85.66095 | AZ66: 87.33905 | BA66: 342 | BB66: 26 | BC66: 7783 | BD66: 813 | BE66: 623 | BF66: 3451 | BG66: 466 | BH66: 843 | BI66: 2955 | BJ66: 2066 | BK66: 719
B67: 05 | C67: 60 | D67: 5659 | E67: P.S. RAPAZ | F67: 11670 | H67: 5778.4005 | I67: 5891.5995 | K67: 47.03925 | L67: 47.96075 | M67: 55.4568 | N67: 56.5432 | O67: 58.92285 | P67: 60.07715 | Q67: 39.11685 | R67: 39.88315 | S67: 55.4568 | T67: 56.5432 | U67: 612.9957 | V67: 625.0043 | W67: 675.87975 | X67: 689.12025 | Y67: 508.0239 | Z67: 517.9761 | AA67: 482.2761 | AB67: 491.7239 | AC67: 552.5874 | AD67: 563.4126 | AE67: 482.77125 | AF67: 492.22875 | AG67: 514.956 | AH67: 525.044 | AI67: 376.314 | AJ67: 383.686 | AK67: 319.8669 | AL67: 326.1331 | AM67: 260.94405 | AN67: 266.05595 | AO67: 202.51635 | AP67: 206.48365 | AQ67: 136.16625 | AR67: 138.83375 | AS67: 141.11775 | AT67: 143.88225 | AU67: 101.50575 | AV67: 103.49425 | AW67: 83.1852 | AX67: 84.8148 | AY67: 71.3016 | AZ67: 72.6984 | BA67: 285 | BB67: 22 | BC67: 6460 | BD67: 675 | BE67: 517 | BF67: 2863 | BG67: 387 | BH67: 700 | BI67: 2456 | BJ67: 1721 | BK67: 595
B68: 05 | C68: 61 | D68: 5660 | E68: C.S. OYON | F68: 703 | H68: 348.09045 | I68: 354.90955 | K68: 2.9709 | L68: 3.0291 | M68: 3.46605 | N68: 3.53395 | O68: 3.46605 | P68: 3.53395 | Q68: 2.47575 | R68: 2.52425 | S68: 3.46605 | T68: 3.53395 | U68: 36.6411 | V68: 37.3589 | W68: 40.10715 | X68: 40.89285 | Y68: 31.19445 | Z68: 31.80555 | AA68: 29.21385 | AB68: 29.78615 | AC68: 33.17505 | AD68: 33.82495 | AE68: 29.21385 | AF68: 29.78615 | AG68: 30.6993 | AH68: 31.3007 | AI68: 22.7769 | AJ68: 23.2231 | AK68: 19.31085 | AL68: 19.68915 | AM68: 15.8448 | AN68: 16.1552 | AO68: 12.37875 | AP68: 12.62125 | AQ68: 8.41755 | AR68: 8.58245 | AS68: 8.41755 | AT68: 8.58245 | AU68: 5.9418 | AV68: 6.0582 | AW68: 4.9515 | AX68: 5.0485 | AY68: 3.9612 | AZ68: 4.0388 | BA68: 17 | BB68: 1 | BC68: 389 | BD68: 41 | BE68: 31 | BF68: 173 | BG68: 23 | BH68: 40 | BI68: 148 | BJ68: 105 | BK68: 35
B69: 05 | C69: 62 | D69: 5661 | E69: P.S. MALLAY | F69: 140 | H69: 69.321 | I69: 70.679 | K69: 0.49515 | L69: 0.50485 | M69: 0.49515 | N69: 0.50485 | O69: 0.49515 | P69: 0.50485 | Q69: 0.49515 | R69: 0.50485 | S69: 0.49515 | T69: 0.50485 | U69: 6.9321 | V69: 7.0679 | W69: 7.42725 | X69: 7.57275 | Y69: 6.43695 | Z69: 6.56305 | AA69: 5.9418 | AB69: 6.0582 | AC69: 6.9321 | AD69: 7.0679 | AE69: 5.9418 | AF69: 6.0582 | AG69: 6.43695 | AH69: 6.56305 | AI69: 4.9515 | AJ69: 5.0485 | AK69: 3.9612 | AL69: 4.0388 | AM69: 2.9709 | AN69: 3.0291 | AO69: 2.47575 | AP69: 2.52425 | AQ69: 1.48545 | AR69: 1.51455 | AS69: 1.48545 | AT69: 1.51455 | AU69: 1.48545 | AV69: 1.51455 | AW69: 0.9903 | AX69: 1.0097 | AY69: 0.9903 | AZ69: 1.0097 | BA69: 3 | BB69: 0 | BC69: 78 | BD69: 8 | BE69: 6 | BF69: 35 | BG69: 5 | BH69: 9 | BI69: 27 | BJ69: 14 | BK69: 10
B70: 05 | C70: 63 | D70: 5662 | E70: P.S. NAVA | F70: 422 | H70: 208.9533 | I70: 213.0467 | K70: 1.9806 | L70: 2.0194 | M70: 1.9806 | N70: 2.0194 | O70: 1.9806 | P70: 2.0194 | Q70: 1.48545 | R70: 1.51455 | S70: 1.9806 | T70: 2.0194 | U70: 22.7769 | V70: 23.2231 | W70: 24.7575 | X70: 25.2425 | Y70: 18.32055 | Z70: 18.67945 | AA70: 17.33025 | AB70: 17.66975 | AC70: 19.806 | AD70: 20.194 | AE70: 17.33025 | AF70: 17.66975 | AG70: 18.8157 | AH70: 19.1843 | AI70: 13.36905 | AJ70: 13.63095 | AK70: 11.38845 | AL70: 11.61155 | AM70: 9.40785 | AN70: 9.59215 | AO70: 7.42725 | AP70: 7.57275 | AQ70: 4.9515 | AR70: 5.0485 | AS70: 4.9515 | AT70: 5.0485 | AU70: 3.46605 | AV70: 3.53395 | AW70: 2.9709 | AX70: 3.0291 | AY70: 2.47575 | AZ70: 2.52425 | BA70: 10 | BB70: 1 | BC70: 233 | BD70: 24 | BE70: 19 | BF70: 104 | BG70: 14 | BH70: 25 | BI70: 89 | BJ70: 63 | BK70: 21
B71: 05 | C71: 64 | D71: 5648 | E71: P.S. TINTA | F71: 1125 | H71: 557.04375 | I71: 567.95625 | K71: 4.45635 | L71: 4.54365 | M71: 5.44665 | N71: 5.55335 | O71: 5.9418 | P71: 6.0582 | Q71: 3.9612 | R71: 4.0388 | S71: 5.44665 | T71: 5.55335 | U71: 58.92285 | V71: 60.07715 | W71: 65.85495 | X71: 67.14505 | Y71: 48.02955 | Z71: 48.97045 | AA71: 46.5441 | AB71: 47.4559 | AC71: 53.4762 | AD71: 54.5238 | AE71: 46.5441 | AF71: 47.4559 | AG71: 49.515 | AH71: 50.485 | AI71: 36.14595 | AJ71: 36.85405 | AK71: 30.6993 | AL71: 31.3007 | AM71: 25.25265 | AN71: 25.74735 | AO71: 19.806 | AP71: 20.194 | AQ71: 12.8739 | AR71: 13.1261 | AS71: 13.36905 | AT71: 13.63095 | AU71: 9.903 | AV71: 10.097 | AW71: 7.9224 | AX71: 8.0776 | AY71: 6.9321 | AZ71: 7.0679 | BA71: 27 | BB71: 2 | BC71: 623 | BD71: 65 | BE71: 50 | BF71: 276 | BG71: 37 | BH71: 69 | BI71: 235 | BJ71: 163 | BK71: 58
A72: 150902 | C72: 65 | D72: 150902 | E72: DISTRITO ANDAJES | F72: 1069 | H72: 529.31535 | I72: 539.68465 | K72: 1.9806 | L72: 2.0194 | M72: 2.47575 | N72: 2.52425 | O72: 1.9806 | P72: 2.0194 | Q72: 1.48545 | R72: 1.51455 | S72: 1.48545 | T72: 1.51455 | U72: 26.24295 | V72: 26.75705 | W72: 32.18475 | X72: 32.81525 | Y72: 29.21385 | Z72: 29.78615 | AA72: 26.7381 | AB72: 27.2619 | AC72: 34.6605 | AD72: 35.3395 | AE72: 22.7769 | AF72: 23.2231 | AG72: 36.6411 | AH72: 37.3589 | AI72: 30.6993 | AJ72: 31.3007 | AK72: 37.6314 | AL72: 38.3686 | AM72: 25.25265 | AN72: 25.74735 | AO72: 36.14595 | AP72: 36.85405 | AQ72: 33.17505 | AR72: 33.82495 | AS72: 51.00045 | AT72: 51.99955 | AU72: 28.7187 | AV72: 29.2813 | AW72: 41.5926 | AX72: 42.4074 | AY72: 27.23325 | AZ72: 27.76675 | BA72: 10 | BB72: 0 | BC72: 560 | BD72: 31 | BE72: 29 | BF72: 192 | BG72: 14 | BH72: 32 | BI72: 154 | BJ72: 114 | BK72: 103
B73: 05 | C73: 66 | D73: 5654 | E73: P.S. ANDAJES | F73: 1069 | H73: 529.31535 | I73: 539.68465 | K73: 1.9806 | L73: 2.0194 | M73: 2.47575 | N73: 2.52425 | O73: 1.9806 | P73: 2.0194 | Q73: 1.48545 | R73: 1.51455 | S73: 1.48545 | T73: 1.51455 | U73: 26.24295 | V73: 26.75705 | W73: 32.18475 | X73: 32.81525 | Y73: 29.21385 | Z73: 29.78615 | AA73: 26.7381 | AB73: 27.2619 | AC73: 34.6605 | AD73: 35.3395 | AE73: 22.7769 | AF73: 23.2231 | AG73: 36.6411 | AH73: 37.3589 | AI73: 30.6993 | AJ73: 31.3007 | AK73: 37.6314 | AL73: 38.3686 | AM73: 25.25265 | AN73: 25.74735 | AO73: 36.14595 | AP73: 36.85405 | AQ73: 33.17505 | AR73: 33.82495 | AS73: 51.00045 | AT73: 51.99955 | AU73: 28.7187 | AV73: 29.2813 | AW73: 41.5926 | AX73: 42.4074 | AY73: 27.23325 | AZ73: 27.76675 | BA73: 10 | BB73: 0 | BC73: 560 | BD73: 31 | BE73: 29 | BF73: 192 | BG73: 14 | BH73: 32 | BI73: 154 | BJ73: 114 | BK73: 103
A74: 150903 | C74: 67 | D74: 150903 | E74: DISTRITO CAUJUL | F74: 1020 | H74: 505.053 | I74: 514.947 | K74: 0.9903 | L74: 1.0097 | M74: 8.41755 | N74: 8.58245 | O74: 3.9612 | P74: 4.0388 | Q74: 6.43695 | R74: 6.56305 | S74: 3.9612 | T74: 4.0388 | U74: 48.5247 | V74: 49.4753 | W74: 43.5732 | X74: 44.4268 | Y74: 37.6314 | Z74: 38.3686 | AA74: 38.6217 | AB74: 39.3783 | AC74: 33.6702 | AD74: 34.3298 | AE74: 34.6605 | AF74: 35.3395 | AG74: 36.6411 | AH74: 37.3589 | AI74: 30.20415 | AJ74: 30.79585 | AK74: 34.6605 | AL74: 35.3395 | AM74: 26.24295 | AN74: 26.75705 | AO74: 23.27205 | AP74: 23.72795 | AQ74: 22.28175 | AR74: 22.71825 | AS74: 28.7187 | AT74: 29.2813 | AU74: 15.34965 | AV74: 15.65035 | AW74: 13.8642 | AX74: 14.1358 | AY74: 13.36905 | AZ74: 13.63095 | BA74: 20 | BB74: 1 | BC74: 556 | BD74: 43 | BE74: 38 | BF74: 218 | BG74: 27 | BH74: 50 | BI74: 176 | BJ74: 138 | BK74: 67
B75: 05 | C75: 68 | D75: 5655 | E75: P.S. CAUJUL | F75: 1020 | H75: 505.053 | I75: 514.947 | K75: 0.9903 | L75: 1.0097 | M75: 8.41755 | N75: 8.58245 | O75: 3.9612 | P75: 4.0388 | Q75: 6.43695 | R75: 6.56305 | S75: 3.9612 | T75: 4.0388 | U75: 48.5247 | V75: 49.4753 | W75: 43.5732 | X75: 44.4268 | Y75: 37.6314 | Z75: 38.3686 | AA75: 38.6217 | AB75: 39.3783 | AC75: 33.6702 | AD75: 34.3298 | AE75: 34.6605 | AF75: 35.3395 | AG75: 36.6411 | AH75: 37.3589 | AI75: 30.20415 | AJ75: 30.79585 | AK75: 34.6605 | AL75: 35.3395 | AM75: 26.24295 | AN75: 26.75705 | AO75: 23.27205 | AP75: 23.72795 | AQ75: 22.28175 | AR75: 22.71825 | AS75: 28.7187 | AT75: 29.2813 | AU75: 15.34965 | AV75: 15.65035 | AW75: 13.8642 | AX75: 14.1358 | AY75: 13.36905 | AZ75: 13.63095 | BA75: 20 | BB75: 1 | BC75: 556 | BD75: 43 | BE75: 38 | BF75: 218 | BG75: 27 | BH75: 50 | BI75: 176 | BJ75: 138 | BK75: 67
A76: 150904 | C76: 69 | D76: 150904 | E76: DISTRITO COCHAMARCA | F76: 1574 | H76: 779.3661 | I76: 794.6339 | K76: 6.9321 | L76: 7.0679 | M76: 7.9224 | N76: 8.0776 | O76: 10.8933 | P76: 11.1067 | Q76: 5.9418 | R76: 6.0582 | S76: 7.9224 | T76: 8.0776 | U76: 87.1464 | V76: 88.8536 | W76: 98.53485 | X76: 100.46515 | Y76: 72.2919 | Z76: 73.7081 | AA76: 58.4277 | AB76: 59.5723 | AC76: 42.08775 | AD76: 42.91225 | AE76: 53.97135 | AF76: 55.02865 | AG76: 56.94225 | AH76: 58.05775 | AI76: 52.98105 | AJ76: 54.01895 | AK76: 39.612 | AL76: 40.388 | AM76: 31.6896 | AN76: 32.3104 | AO76: 35.6508 | AP76: 36.3492 | AQ76: 28.22355 | AR76: 28.77645 | AS76: 22.28175 | AT76: 22.71825 | AU76: 22.7769 | AV76: 23.2231 | AW76: 18.8157 | AX76: 19.1843 | AY76: 18.32055 | AZ76: 18.67945 | BA76: 34 | BB76: 2 | BC76: 863 | BD76: 98 | BE76: 73 | BF76: 318 | BG76: 47 | BH76: 98 | BI76: 255 | BJ76: 205 | BK76: 81
B77: 03 | C77: 70 | D77: 5783 | E77: P.S. COCHAMARCA | F77: 630 | H77: 311.9445 | I77: 318.0555 | K77: 2.9709 | L77: 3.0291 | M77: 2.9709 | N77: 3.0291 | O77: 4.45635 | P77: 4.54365 | Q77: 2.47575 | R77: 2.52425 | S77: 2.9709 | T77: 3.0291 | U77: 35.15565 | V77: 35.84435 | W77: 39.11685 | X77: 39.88315 | Y77: 28.7187 | Z77: 29.2813 | AA77: 23.27205 | AB77: 23.72795 | AC77: 16.8351 | AD77: 17.1649 | AE77: 21.7866 | AF77: 22.2134 | AG77: 22.7769 | AH77: 23.2231 | AI77: 21.29145 | AJ77: 21.70855 | AK77: 15.8448 | AL77: 16.1552 | AM77: 12.8739 | AN77: 13.1261 | AO77: 14.35935 | AP77: 14.64065 | AQ77: 11.38845 | AR77: 11.61155 | AS77: 8.9127 | AT77: 9.0873 | AU77: 8.9127 | AV77: 9.0873 | AW77: 7.42725 | AX77: 7.57275 | AY77: 7.42725 | AZ77: 7.57275 | BA77: 14 | BB77: 1 | BC77: 345 | BD77: 39 | BE77: 29 | BF77: 127 | BG77: 19 | BH77: 39 | BI77: 103 | BJ77: 86 | BK77: 33
B78: 03 | C78: 71 | D78: 5784 | E78: P.S. COLCAPAMPA | F78: 724 | H78: 358.4886 | I78: 365.5114 | K78: 2.9709 | L78: 3.0291 | M78: 3.9612 | N78: 4.0388 | O78: 4.9515 | P78: 5.0485 | Q78: 2.47575 | R78: 2.52425 | S78: 3.9612 | T78: 4.0388 | U78: 39.612 | V78: 40.388 | W78: 45.5538 | X78: 46.4462 | Y78: 33.17505 | Z78: 33.82495 | AA78: 26.7381 | AB78: 27.2619 | AC78: 19.31085 | AD78: 19.68915 | AE78: 24.7575 | AF78: 25.2425 | AG78: 26.24295 | AH78: 26.75705 | AI78: 24.26235 | AJ78: 24.73765 | AK78: 18.32055 | AL78: 18.67945 | AM78: 14.35935 | AN78: 14.64065 | AO78: 16.33995 | AP78: 16.66005 | AQ78: 12.8739 | AR78: 13.1261 | AS78: 10.39815 | AT78: 10.60185 | AU78: 10.8933 | AV78: 11.1067 | AW78: 8.9127 | AX78: 9.0873 | AY78: 8.41755 | AZ78: 8.58245 | BA78: 15 | BB78: 1 | BC78: 397 | BD78: 45 | BE78: 34 | BF78: 146 | BG78: 21 | BH78: 45 | BI78: 118 | BJ78: 93 | BK78: 36
B79: 03 | C79: 72 | D79: 5785 | E79: P.S. YARUCAYA | F79: 220 | H79: 108.933 | I79: 111.067 | K79: 0.9903 | L79: 1.0097 | M79: 0.9903 | N79: 1.0097 | O79: 1.48545 | P79: 1.51455 | Q79: 0.9903 | R79: 1.0097 | S79: 0.9903 | T79: 1.0097 | U79: 12.37875 | V79: 12.62125 | W79: 13.8642 | X79: 14.1358 | Y79: 10.39815 | Z79: 10.60185 | AA79: 8.41755 | AB79: 8.58245 | AC79: 5.9418 | AD79: 6.0582 | AE79: 7.42725 | AF79: 7.57275 | AG79: 7.9224 | AH79: 8.0776 | AI79: 7.42725 | AJ79: 7.57275 | AK79: 5.44665 | AL79: 5.55335 | AM79: 4.45635 | AN79: 4.54365 | AO79: 4.9515 | AP79: 5.0485 | AQ79: 3.9612 | AR79: 4.0388 | AS79: 2.9709 | AT79: 3.0291 | AU79: 2.9709 | AV79: 3.0291 | AW79: 2.47575 | AX79: 2.52425 | AY79: 2.47575 | AZ79: 2.52425 | BA79: 5 | BB79: 0 | BC79: 121 | BD79: 14 | BE79: 10 | BF79: 45 | BG79: 7 | BH79: 14 | BI79: 34 | BJ79: 26 | BK79: 12
A80: 150905 | C80: 73 | D80: 150905 | E80: DISTRITO NAVAN | F80: 1163 | H80: 575.85945 | I80: 587.14055 | K80: 3.9612 | L80: 4.0388 | M80: 4.9515 | N80: 5.0485 | O80: 7.9224 | P80: 8.0776 | Q80: 5.9418 | R80: 6.0582 | S80: 7.42725 | T80: 7.57275 | U80: 37.6314 | V80: 38.3686 | W80: 49.515 | X80: 50.485 | Y80: 32.6799 | Z80: 33.3201 | AA80: 50.5053 | AB80: 51.4947 | AC80: 46.04895 | AD80: 46.95105 | AE80: 38.6217 | AF80: 39.3783 | AG80: 42.5829 | AH80: 43.4171 | AI80: 43.07805 | AJ80: 43.92195 | AK80: 35.6508 | AL80: 36.3492 | AM80: 30.20415 | AN80: 30.79585 | AO80: 24.26235 | AP80: 24.73765 | AQ80: 34.16535 | AR80: 34.83465 | AS80: 15.34965 | AT80: 15.65035 | AU80: 34.6605 | AV80: 35.3395 | AW80: 16.33995 | AX80: 16.66005 | AY80: 14.35935 | AZ80: 14.64065 | BA80: 42 | BB80: 3 | BC80: 641 | BD80: 49 | BE80: 33 | BF80: 266 | BG80: 58 | BH80: 51 | BI80: 234 | BJ80: 151 | BK80: 80
B81: 05 | C81: 74 | D81: 5656 | E81: P.S. NAVAN | F81: 1163 | H81: 575.85945 | I81: 587.14055 | K81: 3.9612 | L81: 4.0388 | M81: 4.9515 | N81: 5.0485 | O81: 7.9224 | P81: 8.0776 | Q81: 5.9418 | R81: 6.0582 | S81: 7.42725 | T81: 7.57275 | U81: 37.6314 | V81: 38.3686 | W81: 49.515 | X81: 50.485 | Y81: 32.6799 | Z81: 33.3201 | AA81: 50.5053 | AB81: 51.4947 | AC81: 46.04895 | AD81: 46.95105 | AE81: 38.6217 | AF81: 39.3783 | AG81: 42.5829 | AH81: 43.4171 | AI81: 43.07805 | AJ81: 43.92195 | AK81: 35.6508 | AL81: 36.3492 | AM81: 30.20415 | AN81: 30.79585 | AO81: 24.26235 | AP81: 24.73765 | AQ81: 34.16535 | AR81: 34.83465 | AS81: 15.34965 | AT81: 15.65035 | AU81: 34.6605 | AV81: 35.3395 | AW81: 16.33995 | AX81: 16.66005 | AY81: 14.35935 | AZ81: 14.64065 | BA81: 42 | BB81: 3 | BC81: 641 | BD81: 49 | BE81: 33 | BF81: 266 | BG81: 58 | BH81: 51 | BI81: 234 | BJ81: 151 | BK81: 80
A82: 150906 | C82: 75 | D82: 150906 | E82: DISTRITO PACHANGARA | F82: 3544 | H82: 1754.8116 | I82: 1789.1884 | K82: 20.7963 | L82: 21.2037 | M82: 24.7575 | N82: 25.2425 | O82: 23.7672 | P82: 24.2328 | Q82: 29.709 | R82: 30.291 | S82: 36.14595 | T82: 36.85405 | U82: 151.5159 | V82: 154.4841 | W82: 173.3025 | X82: 176.6975 | Y82: 139.6323 | Z82: 142.3677 | AA82: 116.36025 | AB82: 118.63975 | AC82: 124.28265 | AD82: 126.71735 | AE82: 103.9815 | AF82: 106.0185 | AG82: 119.33115 | AH82: 121.66885 | AI82: 102.49605 | AJ82: 104.50395 | AK82: 96.0591 | AL82: 97.9409 | AM82: 89.62215 | AN82: 91.37785 | AO82: 99.03 | AP82: 100.97 | AQ82: 79.71915 | AR82: 81.28085 | AS82: 75.75795 | AT82: 77.24205 | AU82: 71.3016 | AV82: 72.6984 | AW82: 42.5829 | AX82: 43.4171 | AY82: 34.6605 | AZ82: 35.3395 | BA82: 78 | BB82: 6 | BC82: 1841 | BD82: 172 | BE82: 141 | BF82: 689 | BG82: 107 | BH82: 182 | BI82: 553 | BJ82: 412 | BK82: 284
B83: 05 | C83: 76 | D83: 5657 | E83: P.S. HUANCAHUASI | F83: 2056 | H83: 1018.0284 | I83: 1037.9716 | K83: 11.8836 | L83: 12.1164 | M83: 14.35935 | N83: 14.64065 | O83: 13.8642 | P83: 14.1358 | Q83: 17.33025 | R83: 17.66975 | S83: 20.7963 | T83: 21.2037 | U83: 88.1367 | V83: 89.8633 | W83: 100.0203 | X83: 101.9797 | Y83: 81.2046 | Z83: 82.7954 | AA83: 67.3404 | AB83: 68.6596 | AC83: 72.2919 | AD83: 73.7081 | AE83: 60.4083 | AF83: 61.5917 | AG83: 69.321 | AH83: 70.679 | AI83: 59.418 | AJ83: 60.582 | AK83: 55.4568 | AL83: 56.5432 | AM83: 51.99075 | AN83: 53.00925 | AO83: 57.4374 | AP83: 58.5626 | AQ83: 46.04895 | AR83: 46.95105 | AS83: 44.06835 | AT83: 44.93165 | AU83: 41.5926 | AV83: 42.4074 | AW83: 24.7575 | AX83: 25.2425 | AY83: 20.30115 | AZ83: 20.69885 | BA83: 45 | BB83: 4 | BC83: 1068 | BD83: 99 | BE83: 82 | BF83: 400 | BG83: 62 | BH83: 107 | BI83: 321 | BJ83: 241 | BK83: 164
B84: 05 | C84: 77 | D84: 5658 | E84: C.S. CHURIN | F84: 673 | H84: 333.23595 | I84: 339.76405 | K84: 3.9612 | L84: 4.0388 | M84: 4.9515 | N84: 5.0485 | O84: 4.45635 | P84: 4.54365 | Q84: 5.44665 | R84: 5.55335 | S84: 6.9321 | T84: 7.0679 | U84: 28.7187 | V84: 29.2813 | W84: 33.6702 | X84: 34.3298 | Y84: 26.24295 | Z84: 26.75705 | AA84: 22.28175 | AB84: 22.71825 | AC84: 23.27205 | AD84: 23.72795 | AE84: 19.806 | AF84: 20.194 | AG84: 22.7769 | AH84: 23.2231 | AI84: 19.31085 | AJ84: 19.68915 | AK84: 18.32055 | AL84: 18.67945 | AM84: 16.8351 | AN84: 17.1649 | AO84: 18.8157 | AP84: 19.1843 | AQ84: 15.34965 | AR84: 15.65035 | AS84: 14.35935 | AT84: 14.64065 | AU84: 13.36905 | AV84: 13.63095 | AW84: 7.9224 | AX84: 8.0776 | AY84: 6.43695 | AZ84: 6.56305 | BA84: 15 | BB84: 1 | BC84: 350 | BD84: 33 | BE84: 27 | BF84: 131 | BG84: 20 | BH84: 34 | BI84: 104 | BJ84: 75 | BK84: 54
B85: 05 | C85: 78 | D85: 5649 | E85: P.S. PACHANGARA | F85: 815 | H85: 403.54725 | I85: 411.45275 | K85: 4.9515 | L85: 5.0485 | M85: 5.44665 | N85: 5.55335 | O85: 5.44665 | P85: 5.55335 | Q85: 6.9321 | R85: 7.0679 | S85: 8.41755 | T85: 8.58245 | U85: 34.6605 | V85: 35.3395 | W85: 39.612 | X85: 40.388 | Y85: 32.18475 | Z85: 32.81525 | AA85: 26.7381 | AB85: 27.2619 | AC85: 28.7187 | AD85: 29.2813 | AE85: 23.7672 | AF85: 24.2328 | AG85: 27.23325 | AH85: 27.76675 | AI85: 23.7672 | AJ85: 24.2328 | AK85: 22.28175 | AL85: 22.71825 | AM85: 20.7963 | AN85: 21.2037 | AO85: 22.7769 | AP85: 23.2231 | AQ85: 18.32055 | AR85: 18.67945 | AS85: 17.33025 | AT85: 17.66975 | AU85: 16.33995 | AV85: 16.66005 | AW85: 9.903 | AX85: 10.097 | AY85: 7.9224 | AZ85: 8.0776 | BA85: 18 | BB85: 1 | BC85: 423 | BD85: 40 | BE85: 32 | BF85: 158 | BG85: 25 | BH85: 41 | BI85: 128 | BJ85: 96 | BK85: 66
C86: 79 | E86: PROVINCIA HUARAL | F86: 1124 | H86: 556.5486 | I86: 567.4514 | K86: 5.9418 | L86: 6.0582 | M86: 8.41755 | N86: 8.58245 | O86: 6.9321 | P86: 7.0679 | Q86: 7.9224 | R86: 8.0776 | S86: 7.9224 | T86: 8.0776 | U86: 54.4665 | V86: 55.5335 | W86: 43.5732 | X86: 44.4268 | Y86: 38.12655 | Z86: 38.87345 | AA86: 44.5635 | AB86: 45.4365 | AC86: 41.5926 | AD86: 42.4074 | AE86: 33.17505 | AF86: 33.82495 | AG86: 33.6702 | AH86: 34.3298 | AI86: 35.15565 | AJ86: 35.84435 | AK86: 36.14595 | AL86: 36.85405 | AM86: 29.709 | AN86: 30.291 | AO86: 24.26235 | AP86: 24.73765 | AQ86: 20.30115 | AR86: 20.69885 | AS86: 31.19445 | AT86: 31.80555 | AU86: 20.7963 | AV86: 21.2037 | AW86: 14.35935 | AX86: 14.64065 | AY86: 18.32055 | AZ86: 18.67945 | BA86: 18 | BB86: 1 | BC86: 599 | BD86: 44 | BE86: 39 | BF86: 234 | BG86: 25 | BH86: 49 | BI86: 169 | BJ86: 131 | BK86: 71
C87: 80 | D87: 150600 | E87: IHUARI - ACOTAMA | F87: 1124 | H87: 556.5486 | I87: 567.4514 | K87: 5.9418 | L87: 6.0582 | M87: 8.41755 | N87: 8.58245 | O87: 6.9321 | P87: 7.0679 | Q87: 7.9224 | R87: 8.0776 | S87: 7.9224 | T87: 8.0776 | U87: 54.4665 | V87: 55.5335 | W87: 43.5732 | X87: 44.4268 | Y87: 38.12655 | Z87: 38.87345 | AA87: 44.5635 | AB87: 45.4365 | AC87: 41.5926 | AD87: 42.4074 | AE87: 33.17505 | AF87: 33.82495 | AG87: 33.6702 | AH87: 34.3298 | AI87: 35.15565 | AJ87: 35.84435 | AK87: 36.14595 | AL87: 36.85405 | AM87: 29.709 | AN87: 30.291 | AO87: 24.26235 | AP87: 24.73765 | AQ87: 20.30115 | AR87: 20.69885 | AS87: 31.19445 | AT87: 31.80555 | AU87: 20.7963 | AV87: 21.2037 | AW87: 14.35935 | AX87: 14.64065 | AY87: 18.32055 | AZ87: 18.67945 | BA87: 18 | BB87: 1 | BC87: 599 | BD87: 44 | BE87: 39 | BF87: 234 | BG87: 25 | BH87: 49 | BI87: 169 | BJ87: 131 | BK87: 71
A88: 150606 | B88: 03 | C88: 81
C89: 82 | E89: MICRORED HUAURA | F89: 39374 | H89: 19496.0361 | I89: 19877.9639 | K89: 240.6429 | L89: 245.3571 | M89: 299.0706 | N89: 304.9294 | O89: 324.8184 | P89: 331.1816 | Q89: 287.187 | R89: 292.813 | S89: 281.2452 | T89: 286.7548 | U89: 1638.9465 | V89: 1671.0535 | W89: 1977.13395 | X89: 2015.86605 | Y89: 1997.93025 | Z89: 2037.06975 | AA89: 1779.5691 | AB89: 1814.4309 | AC89: 1595.3733 | AD89: 1626.6267 | AE89: 1373.5461 | AF89: 1400.4539 | AG89: 1341.8565 | AH89: 1368.1435 | AI89: 1258.17615 | AJ89: 1282.82385 | AK89: 1082.89305 | AL89: 1104.10695 | AM89: 941.28015 | AN89: 959.71985 | AO89: 807.0945 | AP89: 822.9055 | AQ89: 647.16105 | AR89: 659.83895 | AS89: 551.10195 | AT89: 561.89805 | AU89: 475.344 | AV89: 484.656 | AW89: 291.1482 | AX89: 296.8518 | AY89: 304.51725 | AZ89: 310.48275 | BA89: 681 | BB89: 54 | BC89: 20488 | BD89: 1965 | BE89: 2026 | BF89: 8810 | BG89: 927 | BH89: 2401 | BI89: 7287 | BJ89: 5118 | BK89: 2382
B90: 1 | C90: 83 | E90: MICRORED HUALMAY | F90: 87708 | H90: 43428.6162 | I90: 44279.3838 | K90: 616.9569 | L90: 629.0431 | M90: 715.49175 | N90: 729.50825 | O90: 659.5398 | P90: 672.4602 | Q90: 671.4234 | R90: 684.5766 | S90: 759.5601 | T90: 774.4399 | U90: 3469.51605 | V90: 3537.48395 | W90: 3864.64575 | X90: 3940.35425 | Y90: 3711.6444 | Z90: 3784.3556 | AA90: 3657.67305 | AB90: 3729.32695 | AC90: 3407.12715 | AD90: 3473.87285 | AE90: 3026.3568 | AF90: 3085.6432 | AG90: 3106.5711 | AH90: 3167.4289 | AI90: 2908.01595 | AJ90: 2964.98405 | AK90: 2371.27335 | AL90: 2417.72665 | AM90: 2228.67015 | AN90: 2272.32985 | AO90: 2133.1062 | AP90: 2174.8938 | AQ90: 1733.52015 | AR90: 1767.47985 | AS90: 1435.935 | AT90: 1464.065 | AU90: 1145.28195 | AV90: 1167.71805 | AW90: 821.45385 | AX90: 837.54615 | AY90: 984.85335 | AZ90: 1004.14665 | BA90: 1443 | BB90: 114 | BC90: 44898 | BD90: 3824 | BE90: 3747 | BF90: 19222 | BG90: 1965 | BH90: 4530 | BI90: 16357 | BJ90: 11567 | BK90: 6256
B91: 2 | C91: 84 | E91: MICRORED SAYAN | F91: 29188 | H91: 14452.4382 | I91: 14735.5618 | K91: 175.77825 | L91: 179.22175 | M91: 242.6235 | N91: 247.3765 | O91: 168.351 | P91: 171.649 | Q91: 194.59395 | R91: 198.40605 | S91: 157.4577 | T91: 160.5423 | U91: 1314.1281 | V91: 1339.8719 | W91: 1411.67265 | X91: 1439.32735 | Y91: 1346.808 | Z91: 1373.192 | AA91: 1340.37105 | AB91: 1366.62895 | AC91: 1247.28285 | AD91: 1271.71715 | AE91: 1065.5628 | AF91: 1086.4372 | AG91: 1038.8247 | AH91: 1059.1753 | AI91: 908.60025 | AJ91: 926.39975 | AK91: 828.8811 | AL91: 845.1189 | AM91: 678.3555 | AN91: 691.6445 | AO91: 608.0442 | AP91: 619.9558 | AQ91: 507.52875 | AR91: 517.47125 | AS91: 415.43085 | AT91: 423.56915 | AU91: 346.10985 | AV91: 352.89015 | AW91: 229.7496 | AX91: 234.2504 | AY91: 226.28355 | AZ91: 230.71645 | BA91: 534 | BB91: 40 | BC91: 15478 | BD91: 1405 | BE91: 1366 | BF91: 6720 | BG91: 729 | BH91: 1682 | BI91: 5480 | BJ91: 3741 | BK91: 1706
B92: 3 | C92: 85 | E92: MICRORED VEGUETA | F92: 23319 | H92: 11546.40285 | I92: 11772.59715 | K92: 208.45815 | L92: 212.54185 | M92: 207.963 | N92: 212.037 | O92: 184.1958 | P92: 187.8042 | Q92: 257.478 | R92: 262.522 | S92: 239.6526 | T92: 244.3474 | U92: 973.96005 | V92: 993.03995 | W92: 1071.5046 | X92: 1092.4954 | Y92: 1085.3688 | Z92: 1106.6312 | AA92: 1043.7762 | AB92: 1064.2238 | AC92: 910.58085 | AD92: 928.41915 | AE92: 754.6086 | AF92: 769.3914 | AG92: 739.7541 | AH92: 754.2459 | AI92: 708.55965 | AJ92: 722.44035 | AK92: 632.30655 | AL92: 644.69345 | AM92: 544.665 | AN92: 555.335 | AO92: 502.57725 | AP92: 512.42275 | AQ92: 414.44055 | AR92: 422.55945 | AS92: 339.6729 | AT92: 346.3271 | AU92: 286.69185 | AV92: 292.30815 | AW92: 208.45815 | AX92: 212.54185 | AY92: 231.7302 | AZ92: 236.2698 | BA92: 467 | BB92: 37 | BC92: 11844 | BD92: 1063 | BE92: 1099 | BF92: 4993 | BG92: 635 | BH92: 1307 | BI92: 4215 | BJ92: 2874 | BK92: 1482
B93: 4 | C93: 86 | E93: MICRORED CHURIN - OYON | F93: 26301 | H93: 13022.94015 | I93: 13278.05985 | K93: 101.0106 | L93: 102.9894 | M93: 122.7972 | N93: 125.2028 | O93: 129.23415 | P93: 131.76585 | Q93: 114.37965 | R93: 116.62035 | S93: 136.16625 | T93: 138.83375 | U93: 1203.2145 | V93: 1226.7855 | W93: 1369.5849 | X93: 1396.4151 | Y93: 1015.0575 | Z93: 1034.9425 | AA93: 957.12495 | AB93: 975.87505 | AC93: 1051.20345 | AD93: 1071.79655 | AE93: 921.47415 | AF93: 939.52585 | AG93: 1032.8829 | AH93: 1053.1171 | AI93: 843.7356 | AJ93: 860.2644 | AK93: 751.14255 | AL93: 765.85745 | AM93: 673.404 | AN93: 686.596 | AO93: 588.2382 | AP93: 599.7618 | AQ93: 511.9851 | AR93: 522.0149 | AS93: 493.1694 | AT93: 502.8306 | AU93: 427.31445 | AV93: 435.68555 | AW93: 313.42995 | AX93: 319.57005 | AY93: 266.3907 | AZ93: 271.6093 | BA93: 587 | BB93: 42 | BC93: 14299 | BD93: 1360 | BE93: 1028 | BF93: 5800 | BG93: 802 | BH93: 1409 | BI93: 4827 | BJ93: 3524 | BK93: 1734

Sheet Pobla_EESS
D2: POBLACIÓN SEGÚN DISTRITOS Y EE.SS - 2018
D8: SIN MICRORED | K8: MICRORED HUALMAY
D9: DISTRITO | E9: POBLACIÓN | F9: EE.SS | G9: POBLACIÓN | H9: MASCULINO | I9: FEMENINO | K9: DISTRITO | L9: POBLACIÓN | M9: EE.SS | N9: POBLACIÓN | O9: MASCULINO | P9: FEMENINO
D10: HUACHO | E10: =G10 -> 47747 | F10: HOSPITAL HUACHO | G10: =VLOOKUP($F10,Poblacion!$E$8:$I$87,2,FALSE) -> 47747 | H10: =VLOOKUP($F10,Poblacion!$E$8:$I$87,4,FALSE) -> 23641.92705 | I10: =VLOOKUP($F10,Poblacion!$E$8:$I$87,5,FALSE) -> 24105.07295 | K10: HUALMAY | L10: =SUM(M10:M12) -> 0 | M10: C.S. HUALMAY | N10: =VLOOKUP($M10,Poblacion!$E$8:$I$87,2,FALSE) -> 14898 | O10: =VLOOKUP($M10,Poblacion!$E$8:$I$87,4,FALSE) -> 7376.7447 | P10: =VLOOKUP($M10,Poblacion!$E$8:$I$87,5,FALSE) -> 7521.2553
D11: HUACHO | F11: CLINICA SAN PEDRO | G11: 0 | K11: HUALMAY | M11: P.S. DGO. MANDAMIENTO | N11: =VLOOKUP($M11,Poblacion!$E$8:$I$87,2,FALSE) -> 10429 | O11: =VLOOKUP($M11,Poblacion!$E$8:$I$87,4,FALSE) -> 5163.91935 | P11: =VLOOKUP($M11,Poblacion!$E$8:$I$87,5,FALSE) -> 5265.08065
D12: HUACHO | F12: ESSALUD GUSTAVO LA NATA | G12: 0 | K12: HUALMAY | M12: P.S. CAMPO ALEGRE | N12: =VLOOKUP($M12,Poblacion!$E$8:$I$87,2,FALSE) -> 4469 | O12: =VLOOKUP($M12,Poblacion!$E$8:$I$87,4,FALSE) -> 2212.82535 | P12: =VLOOKUP($M12,Poblacion!$E$8:$I$87,5,FALSE) -> 2256.17465
D13: HUACHO | F13: CLINICA SAN BARTOLOME | G13: 0 | K13: S.MARIA | L13: =SUM(M13:M17) -> 0 | M13: C.S. SANTA MARIA | N13: =VLOOKUP($M13,Poblacion!$E$8:$I$87,2,FALSE) -> 9796 | O13: =VLOOKUP($M13,Poblacion!$E$8:$I$87,4,FALSE) -> 4850.4894 | P13: =VLOOKUP($M13,Poblacion!$E$8:$I$87,5,FALSE) -> 4945.5106
D14: HUACHO | F14: GOLD ESTANDAR EIRL. | G14: 0 | K14: S.MARIA | M14: P.S. CHONTA | N14: =VLOOKUP($M14,Poblacion!$E$8:$I$87,2,FALSE) -> 5248 | O14: =VLOOKUP($M14,Poblacion!$E$8:$I$87,4,FALSE) -> 2598.5472 | P14: =VLOOKUP($M14,Poblacion!$E$8:$I$87,5,FALSE) -> 2649.4528
D15: CARQUIN | F15: INSITUTO NACIONAL PENITENCIARIO CARQUIN | G15: 0 | K15: S.MARIA | M15: P.S. 1RO DE MAYO | N15: =VLOOKUP($M15,Poblacion!$E$8:$I$87,2,FALSE) -> 2799 | O15: =VLOOKUP($M15,Poblacion!$E$8:$I$87,4,FALSE) -> 1385.92485 | P15: =VLOOKUP($M15,Poblacion!$E$8:$I$87,5,FALSE) -> 1413.07515
F16: OTROS ESTABLECIMIENTOS | G16: 0 | K16: S.MARIA | M16: P.S. ZAPATA | N16: =VLOOKUP($M16,Poblacion!$E$8:$I$87,2,FALSE) -> 9796 | O16: =VLOOKUP($M16,Poblacion!$E$8:$I$87,4,FALSE) -> 4850.4894 | P16: =VLOOKUP($M16,Poblacion!$E$8:$I$87,5,FALSE) -> 4945.5106
D17: TOTAL SIN MICRORED | G17: =SUM(G10:G16) -> 47747 | H17: =SUM(H10:H16) -> 23641.92705 | I17: =SUM(I10:I16) -> 24105.07295 | K17: S.MARIA | M17: P.S. SAN BARTOLOME | N17: =VLOOKUP($M17,Poblacion!$E$8:$I$87,2,FALSE) -> 7347 | O17: =VLOOKUP($M17,Poblacion!$E$8:$I$87,4,FALSE) -> 3637.86705 | P17: =VLOOKUP($M17,Poblacion!$E$8:$I$87,5,FALSE) -> 3709.13295
D18: Elaboración: Área de Estadística - RIS Huaura Oyón. | K18: CARQUIN | L18: =N18 -> 7011 | M18: P.S. CARQUIN | N18: =VLOOKUP($M18,Poblacion!$E$8:$I$87,2,FALSE) -> 7011 | O18: =VLOOKUP($M18,Poblacion!$E$8:$I$87,4,FALSE) -> 3471.49665 | P18: =VLOOKUP($M18,Poblacion!$E$8:$I$87,5,FALSE) -> 3539.50335
K19: HUACHO | L19: =SUM(N19) -> 15915 | M19: C.S. MANZANARES | N19: =VLOOKUP($M19,Poblacion!$E$8:$I$87,2,FALSE) -> 15915 | O19: =VLOOKUP($M19,Poblacion!$E$8:$I$87,4,FALSE) -> 7880.31225 | P19: =VLOOKUP($M19,Poblacion!$E$8:$I$87,5,FALSE) -> 8034.68775
K20: TOTAL MCR HUALMAY | M20: TOTAL MICRORED HUALMAY | N20: =SUM(N10:N19) -> 87708 | O20: =SUM(O10:O19) -> 43428.6162 | P20: =SUM(P10:P19) -> 44279.3838
K21: =D18 -> Elaboración: Área de Estadística - RIS Huaura Oyón.
D24: MICRORED HUAURA | K24: MICRORED VEGUETA
D25: DISTRITO | E25: POBLACIÓN | F25: EE.SS | G25: POBLACIÓN | H25: MASCULINO | I25: FEMENINO | K25: DISTRITO | L25: POBLACIÓN | M25: EE.SS | N25: POBLACIÓN | O25: MASCULINO | P25: FEMENINO
D26: HUAURA | E26: =SUM(G26:G30) -> 36623 | F26: C.S. HUAURA | G26: =VLOOKUP($F26,Poblacion!$E$8:$I$87,2,FALSE) -> 18311 | H26: =VLOOKUP($F26,Poblacion!$E$8:$I$87,4,FALSE) -> 9066.69165 | I26: =VLOOKUP($F26,Poblacion!$E$8:$I$87,5,FALSE) -> 9244.30835 | K26: VEGUETA | L26: =SUM(N26:N31) -> 23319 | M26: C.S. VEGUETA | N26: =VLOOKUP($M26,Poblacion!$E$8:$I$87,2,FALSE) -> 6996 | O26: =VLOOKUP($M26,Poblacion!$E$8:$I$87,4,FALSE) -> 3464.0694 | P26: =VLOOKUP($M26,Poblacion!$E$8:$I$87,5,FALSE) -> 3531.9306
D27: HUAURA | F27: P.S. HUMAYA | G27: =VLOOKUP($F27,Poblacion!$E$8:$I$87,2,FALSE) -> 12086 | H27: =VLOOKUP($F27,Poblacion!$E$8:$I$87,4,FALSE) -> 5984.3829 | I27: =VLOOKUP($F27,Poblacion!$E$8:$I$87,5,FALSE) -> 6101.6171 | K27: VEGUETA | M27: P.S. MAZO | N27: =VLOOKUP($M27,Poblacion!$E$8:$I$87,2,FALSE) -> 1866 | O27: =VLOOKUP($M27,Poblacion!$E$8:$I$87,4,FALSE) -> 923.9499 | P27: =VLOOKUP($M27,Poblacion!$E$8:$I$87,5,FALSE) -> 942.0501
D28: HUAURA | F28: P.S. VILCAHUAURA | G28: =VLOOKUP($F28,Poblacion!$E$8:$I$87,2,FALSE) -> 3296 | H28: =VLOOKUP($F28,Poblacion!$E$8:$I$87,4,FALSE) -> 1632.0144 | I28: =VLOOKUP($F28,Poblacion!$E$8:$I$87,5,FALSE) -> 1663.9856 | K28: VEGUETA | M28: P.S. PRIMAVERA | N28: =VLOOKUP($M28,Poblacion!$E$8:$I$87,2,FALSE) -> 4197 | O28: =VLOOKUP($M28,Poblacion!$E$8:$I$87,4,FALSE) -> 2078.14455 | P28: =VLOOKUP($M28,Poblacion!$E$8:$I$87,5,FALSE) -> 2118.85545
D29: HUAURA | F29: P.S. PEÑICO | G29: =VLOOKUP($F29,Poblacion!$E$8:$I$87,2,FALSE) -> 2564 | H29: =VLOOKUP($F29,Poblacion!$E$8:$I$87,4,FALSE) -> 1269.5646 | I29: =VLOOKUP($F29,Poblacion!$E$8:$I$87,5,FALSE) -> 1294.4354 | K29: VEGUETA | M29: P.S. MARIATEGUI | N29: =VLOOKUP($M29,Poblacion!$E$8:$I$87,2,FALSE) -> 6296 | O29: =VLOOKUP($M29,Poblacion!$E$8:$I$87,4,FALSE) -> 3117.4644 | P29: =VLOOKUP($M29,Poblacion!$E$8:$I$87,5,FALSE) -> 3178.5356
D30: HUAURA | F30: P.S. EL SOCORRO | G30: =VLOOKUP($F30,Poblacion!$E$8:$I$87,2,FALSE) -> 366 | H30: =VLOOKUP($F30,Poblacion!$E$8:$I$87,4,FALSE) -> 181.2249 | I30: =VLOOKUP($F30,Poblacion!$E$8:$I$87,5,FALSE) -> 184.7751 | K30: VEGUETA | M30: P.S. MEDIO MUNDO | N30: =VLOOKUP($M30,Poblacion!$E$8:$I$87,2,FALSE) -> 3498 | O30: =VLOOKUP($M30,Poblacion!$E$8:$I$87,4,FALSE) -> 1732.0347 | P30: =VLOOKUP($M30,Poblacion!$E$8:$I$87,5,FALSE) -> 1765.9653
D31: AMBAR | E31: =SUM(G31:G32) -> 2751 | F31: C.S. AMBAR | G31: =VLOOKUP($F31,Poblacion!$E$8:$I$87,2,FALSE) -> 1652 | H31: =VLOOKUP($F31,Poblacion!$E$8:$I$87,4,FALSE) -> 817.9878 | I31: =VLOOKUP($F31,Poblacion!$E$8:$I$87,5,FALSE) -> 834.0122 | K31: VEGUETA | M31: P.S. TIROLER | N31: =VLOOKUP($M31,Poblacion!$E$8:$I$87,2,FALSE) -> 466 | O31: =VLOOKUP($M31,Poblacion!$E$8:$I$87,4,FALSE) -> 230.7399 | P31: =VLOOKUP($M31,Poblacion!$E$8:$I$87,5,FALSE) -> 235.2601
D32: AMBAR | F32: P.S. AYNACA | G32: =VLOOKUP($F32,Poblacion!$E$8:$I$87,2,FALSE) -> 1099 | H32: =VLOOKUP($F32,Poblacion!$E$8:$I$87,4,FALSE) -> 544.16985 | I32: =VLOOKUP($F32,Poblacion!$E$8:$I$87,5,FALSE) -> 554.83015 | K32: TOTAL MCR VEGUETA | N32: =SUM(N26:N31) -> 23319 | O32: =SUM(O26:O31) -> 11546.40285 | P32: =SUM(P26:P31) -> 11772.59715
D33: TOTAL MCR HUAURA | F33: TOTAL MICRORED HUAURA | G33: =SUM(G26:G32) -> 39374 | H33: =SUM(H26:H32) -> 19496.0361 | I33: 19877.9639 | K33: =K21 -> Elaboración: Área de Estadística - RIS Huaura Oyón.
D34: =K21 -> Elaboración: Área de Estadística - RIS Huaura Oyón.
D38: MICRORED SAYAN | K38: MICRORED CHURIN OYÓN
D39: DISTRITO | E39: POBLACIÓN | F39: EE.SS | G39: POBLACIÓN | H39: MASCULINO | I39: FEMENINO | K39: DISTRITO | L39: POBLACIÓN | M39: EE.SS | N39: POBLACIÓN | O39: MASCULINO | P39: FEMENINO
D40: SAYAN | E40: =SUM(G40:G46) -> 24500 | F40: C.S. 9 DE OCTUBRE | G40: =VLOOKUP($F40,Poblacion!$E$8:$I$87,2,FALSE) -> 9800 | H40: =VLOOKUP($F40,Poblacion!$E$8:$I$87,4,FALSE) -> 4852.47 | I40: =VLOOKUP($F40,Poblacion!$E$8:$I$87,5,FALSE) -> 4947.53 | K40: PACHANGARA | L40: =SUM(N40:N42) -> 3544 | M40: P.S. HUANCAHUASI | N40: =VLOOKUP(M40,Poblacion!$E$5:$I$88,2,FALSE) -> 2056 | O40: =VLOOKUP(M40,Poblacion!$E$5:$I$88,4,FALSE) -> 1018.0284 | P40: =VLOOKUP(M40,Poblacion!$E$5:$I$88,5,FALSE) -> 1037.9716
D41: SAYAN | F41: P.S. LA MERCED | G41: =VLOOKUP($F41,Poblacion!$E$8:$I$87,2,FALSE) -> 5635 | H41: =VLOOKUP($F41,Poblacion!$E$8:$I$87,4,FALSE) -> 2790.17025 | I41: =VLOOKUP($F41,Poblacion!$E$8:$I$87,5,FALSE) -> 2844.82975 | K41: PACHANGARA | M41: C.S. CHURIN | N41: =VLOOKUP(M41,Poblacion!$E$5:$I$88,2,FALSE) -> 673 | O41: =VLOOKUP(M41,Poblacion!$E$5:$I$88,4,FALSE) -> 333.23595 | P41: =VLOOKUP(M41,Poblacion!$E$5:$I$88,5,FALSE) -> 339.76405
D42: SAYAN | F42: P.S. LA VILLA | G42: =VLOOKUP($F42,Poblacion!$E$8:$I$87,2,FALSE) -> 735 | H42: =VLOOKUP($F42,Poblacion!$E$8:$I$87,4,FALSE) -> 363.93525 | I42: =VLOOKUP($F42,Poblacion!$E$8:$I$87,5,FALSE) -> 371.06475 | K42: PACHANGARA | M42: P.S. PACHANGARA | N42: =VLOOKUP(M42,Poblacion!$E$5:$I$88,2,FALSE) -> 815 | O42: =VLOOKUP(M42,Poblacion!$E$5:$I$88,4,FALSE) -> 403.54725 | P42: =VLOOKUP(M42,Poblacion!$E$5:$I$88,5,FALSE) -> 411.45275
D43: SAYAN | F43: P.S. EL AHORCADO | G43: =VLOOKUP($F43,Poblacion!$E$8:$I$87,2,FALSE) -> 1225 | H43: =VLOOKUP($F43,Poblacion!$E$8:$I$87,4,FALSE) -> 606.55875 | I43: =VLOOKUP($F43,Poblacion!$E$8:$I$87,5,FALSE) -> 618.44125 | K43: OYON | L43: =SUM(N43:N47) -> 14060 | M43: P.S. RAPAZ | N43: =VLOOKUP(M43,Poblacion!$E$5:$I$88,2,FALSE) -> 11670 | O43: =VLOOKUP(M43,Poblacion!$E$5:$I$88,4,FALSE) -> 5778.4005 | P43: =VLOOKUP(M43,Poblacion!$E$5:$I$88,5,FALSE) -> 5891.5995
D44: SAYAN | F44: P.S. SAYAN | G44: =VLOOKUP($F44,Poblacion!$E$8:$I$87,2,FALSE) -> 6125 | H44: =VLOOKUP($F44,Poblacion!$E$8:$I$87,4,FALSE) -> 3032.79375 | I44: =VLOOKUP($F44,Poblacion!$E$8:$I$87,5,FALSE) -> 3092.20625 | K44: OYON | M44: C.S. OYON | N44: =VLOOKUP(M44,Poblacion!$E$5:$I$88,2,FALSE) -> 703 | O44: =VLOOKUP(M44,Poblacion!$E$5:$I$88,4,FALSE) -> 348.09045 | P44: =VLOOKUP(M44,Poblacion!$E$5:$I$88,5,FALSE) -> 354.90955
D45: SAYAN | F45: P.S. CHAMBARA | G45: =VLOOKUP($F45,Poblacion!$E$8:$I$87,2,FALSE) -> 490 | H45: =VLOOKUP($F45,Poblacion!$E$8:$I$87,4,FALSE) -> 242.6235 | I45: =VLOOKUP($F45,Poblacion!$E$8:$I$87,5,FALSE) -> 247.3765 | K45: OYON | M45: P.S. MALLAY | N45: =VLOOKUP(M45,Poblacion!$E$5:$I$88,2,FALSE) -> 140 | O45: =VLOOKUP(M45,Poblacion!$E$5:$I$88,4,FALSE) -> 69.321 | P45: =VLOOKUP(M45,Poblacion!$E$5:$I$88,5,FALSE) -> 70.679
D46: SAYAN | F46: P.S. LA UNION | G46: =VLOOKUP($F46,Poblacion!$E$8:$I$87,2,FALSE) -> 490 | H46: =VLOOKUP($F46,Poblacion!$E$8:$I$87,4,FALSE) -> 242.6235 | I46: =VLOOKUP($F46,Poblacion!$E$8:$I$87,5,FALSE) -> 247.3765 | K46: OYON | M46: P.S. NAVA | N46: =VLOOKUP(M46,Poblacion!$E$5:$I$88,2,FALSE) -> 422 | O46: =VLOOKUP(M46,Poblacion!$E$5:$I$88,4,FALSE) -> 208.9533 | P46: =VLOOKUP(M46,Poblacion!$E$5:$I$88,5,FALSE) -> 213.0467
D47: L.PRADO | E47: =SUM(G47:G50) -> 1990 | F47: P.S. AUQUIMARCA | G47: =VLOOKUP($F47,Poblacion!$E$8:$I$87,2,FALSE) -> 100 | H47: =VLOOKUP($F47,Poblacion!$E$8:$I$87,4,FALSE) -> 49.515 | I47: =VLOOKUP($F47,Poblacion!$E$8:$I$87,5,FALSE) -> 50.485 | K47: OYON | M47: P.S. TINTA | N47: =VLOOKUP(M47,Poblacion!$E$5:$I$88,2,FALSE) -> 1125 | O47: =VLOOKUP(M47,Poblacion!$E$5:$I$88,4,FALSE) -> 557.04375 | P47: =VLOOKUP(M47,Poblacion!$E$5:$I$88,5,FALSE) -> 567.95625
D48: L.PRADO | F48: P.S. PARAN | G48: =VLOOKUP($F48,Poblacion!$E$8:$I$87,2,FALSE) -> 994 | H48: =VLOOKUP($F48,Poblacion!$E$8:$I$87,4,FALSE) -> 492.1791 | I48: =VLOOKUP($F48,Poblacion!$E$8:$I$87,5,FALSE) -> 501.8209 | K48: ANDAJES | L48: =N48 -> 1069 | M48: P.S. ANDAJES | N48: =VLOOKUP(M48,Poblacion!$E$5:$I$88,2,FALSE) -> 1069 | O48: =VLOOKUP(M48,Poblacion!$E$5:$I$88,4,FALSE) -> 529.31535 | P48: =VLOOKUP(M48,Poblacion!$E$5:$I$88,5,FALSE) -> 539.68465
D49: L.PRADO | F49: P.S. SANTA CRUZ | G49: =VLOOKUP($F49,Poblacion!$E$8:$I$87,2,FALSE) -> 398 | H49: =VLOOKUP($F49,Poblacion!$E$8:$I$87,4,FALSE) -> 197.0697 | I49: =VLOOKUP($F49,Poblacion!$E$8:$I$87,5,FALSE) -> 200.9303 | K49: CAUJUL | L49: =N49 -> 1020 | M49: P.S. CAUJUL | N49: =VLOOKUP(M49,Poblacion!$E$5:$I$88,2,FALSE) -> 1020 | O49: =VLOOKUP(M49,Poblacion!$E$5:$I$88,4,FALSE) -> 505.053 | P49: =VLOOKUP(M49,Poblacion!$E$5:$I$88,5,FALSE) -> 514.947
D50: L.PRADO | F50: P.S. HUANANGUI | G50: =VLOOKUP($F50,Poblacion!$E$8:$I$87,2,FALSE) -> 498 | H50: =VLOOKUP($F50,Poblacion!$E$8:$I$87,4,FALSE) -> 246.5847 | I50: =VLOOKUP($F50,Poblacion!$E$8:$I$87,5,FALSE) -> 251.4153 | K50: NAVAN | L50: 1163 | M50: P.S. NAVAN | N50: =VLOOKUP(M50,Poblacion!$E$5:$I$88,2,FALSE) -> 1163 | O50: =VLOOKUP(M50,Poblacion!$E$5:$I$88,4,FALSE) -> 575.85945 | P50: =VLOOKUP(M50,Poblacion!$E$5:$I$88,5,FALSE) -> 587.14055
D51: COCHAMARCA | E51: =SUM(G51:G53) -> 1574 | F51: P.S. COCHAMARCA | G51: =VLOOKUP($F51,Poblacion!$E$8:$I$87,2,FALSE) -> 630 | H51: =VLOOKUP($F51,Poblacion!$E$8:$I$87,4,FALSE) -> 311.9445 | I51: =VLOOKUP($F51,Poblacion!$E$8:$I$87,5,FALSE) -> 318.0555 | K51: CHECRAS | L51: 1751 | M51: P.S. PUÑUN | N51: =VLOOKUP(M51,Poblacion!$E$5:$I$88,2,FALSE) -> 1751 | O51: =VLOOKUP(M51,Poblacion!$E$5:$I$88,4,FALSE) -> 867.00765 | P51: =VLOOKUP(M51,Poblacion!$E$5:$I$88,5,FALSE) -> 883.99235
D52: COCHAMARCA | F52: P.S. COLCAPAMPA | G52: =VLOOKUP($F52,Poblacion!$E$8:$I$87,2,FALSE) -> 724 | H52: =VLOOKUP($F52,Poblacion!$E$8:$I$87,4,FALSE) -> 358.4886 | I52: =VLOOKUP($F52,Poblacion!$E$8:$I$87,5,FALSE) -> 365.5114 | K52: PACCHO | L52: =SUM(N52:N55) -> 2227 | M52: P.S. PACCHO | N52: =VLOOKUP(M52,Poblacion!$E$5:$I$88,2,FALSE) -> 824 | O52: =VLOOKUP(M52,Poblacion!$E$5:$I$88,4,FALSE) -> 408.0036 | P52: =VLOOKUP(M52,Poblacion!$E$5:$I$88,5,FALSE) -> 415.9964
D53: COCHAMARCA | F53: P.S. YARUCAYA | G53: =VLOOKUP($F53,Poblacion!$E$8:$I$87,2,FALSE) -> 220 | H53: =VLOOKUP($F53,Poblacion!$E$8:$I$87,4,FALSE) -> 108.933 | I53: =VLOOKUP($F53,Poblacion!$E$8:$I$87,5,FALSE) -> 111.067 | K53: PACCHO | M53: P.S. LACSANGA | N53: =VLOOKUP(M53,Poblacion!$E$5:$I$88,2,FALSE) -> 624 | O53: =VLOOKUP(M53,Poblacion!$E$5:$I$88,4,FALSE) -> 308.9736 | P53: =VLOOKUP(M53,Poblacion!$E$5:$I$88,5,FALSE) -> 315.0264
D54: IHUARI - ACOTAMA | E54: =G54 -> 1124 | F54: IHUARI - ACOTAMA | G54: =VLOOKUP($F54,Poblacion!$E$8:$I$87,2,FALSE) -> 1124 | H54: =VLOOKUP($F54,Poblacion!$E$8:$I$87,4,FALSE) -> 556.5486 | I54: =VLOOKUP($F54,Poblacion!$E$8:$I$87,5,FALSE) -> 567.4514 | K54: PACCHO | M54: P.S. AYARANGA | N54: =VLOOKUP(M54,Poblacion!$E$5:$I$88,2,FALSE) -> 445 | O54: =VLOOKUP(M54,Poblacion!$E$5:$I$88,4,FALSE) -> 220.34175 | P54: =VLOOKUP(M54,Poblacion!$E$5:$I$88,5,FALSE) -> 224.65825
D55: TOTAL MICRORED SAYAN | G55: =SUM(G40:G54) -> 29188 | H55: =SUM(H40:H54) -> 14452.4382 | I55: 14735.5618 | K55: PACCHO | M55: P.S. MUZGA | N55: =VLOOKUP(M55,Poblacion!$E$5:$I$88,2,FALSE) -> 334 | O55: =VLOOKUP(M55,Poblacion!$E$5:$I$88,4,FALSE) -> 165.3801 | P55: =VLOOKUP(M55,Poblacion!$E$5:$I$88,5,FALSE) -> 168.6199
D56: =K33 -> Elaboración: Área de Estadística - RIS Huaura Oyón. | K56: S.LEONOR | L56: =SUM(N56:N58) -> 1467 | M56: P.S. CHIUCHIN | N56: =VLOOKUP(M56,Poblacion!$E$5:$I$88,2,FALSE) -> 807 | O56: =VLOOKUP(M56,Poblacion!$E$5:$I$88,4,FALSE) -> 399.58605 | P56: =VLOOKUP(M56,Poblacion!$E$5:$I$88,5,FALSE) -> 407.41395
K57: S.LEONOR | M57: P.S. PARQUIN | N57: =VLOOKUP(M57,Poblacion!$E$5:$I$88,2,FALSE) -> 264 | O57: =VLOOKUP(M57,Poblacion!$E$5:$I$88,4,FALSE) -> 130.7196 | P57: =VLOOKUP(M57,Poblacion!$E$5:$I$88,5,FALSE) -> 133.2804
K58: S.LEONOR | M58: P.S. JUCUL | N58: =VLOOKUP(M58,Poblacion!$E$5:$I$88,2,FALSE) -> 396 | O58: =VLOOKUP(M58,Poblacion!$E$5:$I$88,4,FALSE) -> 196.0794 | P58: =VLOOKUP(M58,Poblacion!$E$5:$I$88,5,FALSE) -> 199.9206
K59: TOTAL MICRORED CHURIN - OYON | N59: =SUM(N40:N58) -> 26301 | O59: =SUM(O40:O58) -> 13022.94015 | P59: =SUM(P40:P58) -> 13278.05985
K60: =K33 -> Elaboración: Área de Estadística - RIS Huaura Oyón.
